Publisher Label,Publisher URI,"Supplier","Invoice ","Amount (£)","Purpose","Transaction Number","Payment Date","Organisational Unit","Cost Centre(T)","Internal category number"
"Wolverhampton City Council","http://opendatacommunities.org/id/metropolitan-district-council/wolverhampton","Adt Fire And Security PLC","26449012 02","276.18","Fixtures and Fittings - R&M","130008754","01/04/14","Youth Services","Youth Service - Graiseley","R2502"
"Wolverhampton City Council","http://opendatacommunities.org/id/metropolitan-district-council/wolverhampton","Alexander Dennis Limited","143457","12.10","Equipment - Purchase","190000563","07/04/14","Fleet Services","Fleet Management","R4000"
"Wolverhampton City Council","http://opendatacommunities.org/id/metropolitan-district-council/wolverhampton","Dennis Eagle Limited","DE10774828","24.37","Equipment - Purchase","190000571","07/04/14","Fleet Services","Fleet Management","R4000"
"Wolverhampton City Council","http://opendatacommunities.org/id/metropolitan-district-council/wolverhampton","Dennis Eagle Limited","DE10774828","6.99","Equipment - Purchase","190000571","07/04/14","Fleet Services","Fleet Management","R4000"
"Wolverhampton City Council","http://opendatacommunities.org/id/metropolitan-district-council/wolverhampton","Dennis Eagle Limited","DE10774828","44.43","Equipment - Purchase","190000571","07/04/14","Fleet Services","Fleet Management","R4000"
"Wolverhampton City Council","http://opendatacommunities.org/id/metropolitan-district-council/wolverhampton","Dennis Eagle Limited","DE10775167","9.66","Equipment - Purchase","190000572","07/04/14","Fleet Services","Fleet Management","R4000"
"Wolverhampton City Council","http://opendatacommunities.org/id/metropolitan-district-council/wolverhampton","Dennis Eagle Limited","DE10775167","38.41","Equipment - Purchase","190000572","07/04/14","Fleet Services","Fleet Management","R4000"
"Wolverhampton City Council","http://opendatacommunities.org/id/metropolitan-district-council/wolverhampton","Dennis Eagle Limited","DE10774827","13.60","Equipment - Purchase","190000570","07/04/14","Fleet Services","Fleet Management","R4000"
"Wolverhampton City Council","http://opendatacommunities.org/id/metropolitan-district-council/wolverhampton","Dennis Eagle Limited","DE10774827","67.16","Equipment - Purchase","190000570","07/04/14","Fleet Services","Fleet Management","R4000"
"Wolverhampton City Council","http://opendatacommunities.org/id/metropolitan-district-council/wolverhampton","Dennis Eagle Limited","DE10775488","21.04","Equipment - Purchase","190000573","07/04/14","Fleet Services","Fleet Management","R4000"
"Wolverhampton City Council","http://opendatacommunities.org/id/metropolitan-district-council/wolverhampton","Evans Halshaw Ford","723509","24.27","Equipment - Purchase","190000568","07/04/14","Fleet Services","Fleet Management","R4000"
"Wolverhampton City Council","http://opendatacommunities.org/id/metropolitan-district-council/wolverhampton","Flying Penguin Enterprises","171794","46.74","Equipment - Purchase","190000564","07/04/14","Fleet Services","Fleet Management","R4000"
"Wolverhampton City Council","http://opendatacommunities.org/id/metropolitan-district-council/wolverhampton","Flying Penguin Enterprises","171966","5.82","Equipment - Purchase","190000565","07/04/14","Fleet Services","Fleet Management","R4000"
"Wolverhampton City Council","http://opendatacommunities.org/id/metropolitan-district-council/wolverhampton","Flying Penguin Enterprises","171967","36.34","Equipment - Purchase","190000566","07/04/14","Fleet Services","Fleet Management","R4000"
"Wolverhampton City Council","http://opendatacommunities.org/id/metropolitan-district-council/wolverhampton","Flying Penguin Enterprises","171967","9.90","Equipment - Purchase","190000566","07/04/14","Fleet Services","Fleet Management","R4000"
"Wolverhampton City Council","http://opendatacommunities.org/id/metropolitan-district-council/wolverhampton","Glaze Auto Parts Limited","IN550385","84.57","Equipment - Purchase","190000574","07/04/14","Fleet Services","Fleet Management","R4000"
"Wolverhampton City Council","http://opendatacommunities.org/id/metropolitan-district-council/wolverhampton","Glaze Auto Parts Limited","IN551402","3.47","Equipment - Purchase","190000575","07/04/14","Fleet Services","Fleet Management","R4000"
"Wolverhampton City Council","http://opendatacommunities.org/id/metropolitan-district-council/wolverhampton","Glaze Auto Parts Limited","IN551402","28.84","Equipment - Purchase","190000575","07/04/14","Fleet Services","Fleet Management","R4000"
"Wolverhampton City Council","http://opendatacommunities.org/id/metropolitan-district-council/wolverhampton","Glaze Auto Parts Limited","IN551402","3.97","Equipment - Purchase","190000575","07/04/14","Fleet Services","Fleet Management","R4000"
"Wolverhampton City Council","http://opendatacommunities.org/id/metropolitan-district-council/wolverhampton","Glaze Auto Parts Limited","IN551402","20.82","Equipment - Purchase","190000575","07/04/14","Fleet Services","Fleet Management","R4000"
"Wolverhampton City Council","http://opendatacommunities.org/id/metropolitan-district-council/wolverhampton","Guest Motors Limited","13003673","14.10","Equipment - Purchase","190000562","07/04/14","Fleet Services","Fleet Management","R4000"
"Wolverhampton City Council","http://opendatacommunities.org/id/metropolitan-district-council/wolverhampton","Terberg Matec UK Limited","96294878","130.24","Equipment - Purchase","190000569","07/04/14","Fleet Services","Fleet Management","R4000"
"Wolverhampton City Council","http://opendatacommunities.org/id/metropolitan-district-council/wolverhampton","Terberg Matec UK Limited","96294878","92.20","Equipment - Purchase","190000569","07/04/14","Fleet Services","Fleet Management","R4000"
"Wolverhampton City Council","http://opendatacommunities.org/id/metropolitan-district-council/wolverhampton","Terberg Matec UK Limited","96294878","184.40","Equipment - Purchase","190000569","07/04/14","Fleet Services","Fleet Management","R4000"
"Wolverhampton City Council","http://opendatacommunities.org/id/metropolitan-district-council/wolverhampton","University Of Wolverhampton (Little Scholars)","45010335","34.00","TPP - Child Care provided for client","130006207","07/04/14","Adult Education","Discretionary Fund","R5034"
"Wolverhampton City Council","http://opendatacommunities.org/id/metropolitan-district-council/wolverhampton","Willenhall Engine Centre","57106","870.00","Services - Professional Fees","190000567","07/04/14","Fleet Services","Fleet Management","R4400"
"Wolverhampton City Council","http://opendatacommunities.org/id/metropolitan-district-council/wolverhampton","Blue Group Interntl Limited T/A Bluecare","HSOC5258139","1,184.00","Agency Staff","130000071","10/04/14","Children in Need & Child Protection","Duty and Assessment - Section 17","R1100"
"Wolverhampton City Council","http://opendatacommunities.org/id/metropolitan-district-council/wolverhampton","Blue Group Interntl Limited T/A Bluecare","HSOC5258138","1,443.00","Agency Staff","130000073","10/04/14","Children in Need & Child Protection","Duty & Assessment","R1100"
"Wolverhampton City Council","http://opendatacommunities.org/id/metropolitan-district-council/wolverhampton","Blue Group Interntl Limited T/A Bluecare","HSOC5250201","1,184.00","Agency Staff","130000069","10/04/14","Children in Need & Child Protection","Duty & Assessment","R1100"
"Wolverhampton City Council","http://opendatacommunities.org/id/metropolitan-district-council/wolverhampton","Blue Group Interntl Limited T/A Bluecare","HSOC5253894","1,443.00","Agency Staff","130000085","10/04/14","Children in Need & Child Protection","Duty & Assessment","R1100"
"Wolverhampton City Council","http://opendatacommunities.org/id/metropolitan-district-council/wolverhampton","Blue Group Interntl Limited T/A Bluecare","HSOC5259637","1,443.00","Agency Staff","130000070","10/04/14","Children in Need & Child Protection","Duty & Assessment","R1100"
"Wolverhampton City Council","http://opendatacommunities.org/id/metropolitan-district-council/wolverhampton","Blue Group Interntl Limited T/A Bluecare","HSOC5253172","1,258.00","Agency Staff","130000086","10/04/14","Children in Need & Child Protection","North East Locality Service","R1100"
"Wolverhampton City Council","http://opendatacommunities.org/id/metropolitan-district-council/wolverhampton","Blue Group Interntl Limited T/A Bluecare","HSOC5255840","1,443.00","Agency Staff","130000084","10/04/14","Children in Need & Child Protection","Duty & Assessment","R1100"
"Wolverhampton City Council","http://opendatacommunities.org/id/metropolitan-district-council/wolverhampton","Blue Group Interntl Limited T/A Bluecare","HSOC5258135","233.10","Agency Staff","130000082","10/04/14","Children in Need & Child Protection","Duty and Assessment - Section 17","R1100"
"Wolverhampton City Council","http://opendatacommunities.org/id/metropolitan-district-council/wolverhampton","Blue Group Interntl Limited T/A Bluecare","HSOC5256269","867.00","Agency Staff","130000083","10/04/14","Children in Need & Child Protection","North East Locality Service","R1100"
"Wolverhampton City Council","http://opendatacommunities.org/id/metropolitan-district-council/wolverhampton","Blue Group Interntl Limited T/A Bluecare","HSOC5252001","1,443.00","Agency Staff","130000058","10/04/14","Children in Need & Child Protection","Duty & Assessment","R1100"
"Wolverhampton City Council","http://opendatacommunities.org/id/metropolitan-district-council/wolverhampton","British Gas Business","66532259/1","27.30","Electricity","130000047","10/04/14","Markets","Wolverhampton Indoor and Open Market","R2100"
"Wolverhampton City Council","http://opendatacommunities.org/id/metropolitan-district-council/wolverhampton","British Gas Business","66532259/1","103.91","Electricity","130000047","10/04/14","Markets","Wolverhampton Indoor and Open Market","R2100"
"Wolverhampton City Council","http://opendatacommunities.org/id/metropolitan-district-council/wolverhampton","Capita Resourcing Limited(Veredus)","01423658","100.43","Agency Staff","130000011","10/04/14","Learning Disability Provider","Duke Street Bungalows","R1100"
"Wolverhampton City Council","http://opendatacommunities.org/id/metropolitan-district-council/wolverhampton","Capita Resourcing Limited(Veredus)","01418442","1,232.10","Agency Staff","130000010","10/04/14","Children in Need & Child Protection","Duty and Assessment - Section 17","R1100"
"Wolverhampton City Council","http://opendatacommunities.org/id/metropolitan-district-council/wolverhampton","Capita Resourcing Limited(Veredus)","01435166","537.43","Agency Staff","130000040","10/04/14","Learning Disability Provider","Duke Street Bungalows","R1100"
"Wolverhampton City Council","http://opendatacommunities.org/id/metropolitan-district-council/wolverhampton","Capita Resourcing Limited(Veredus)","01433111","1,215.45","Agency Staff","130000036","10/04/14","Children in Need & Child Protection","Duty and Assessment - Section 17","R1100"
"Wolverhampton City Council","http://opendatacommunities.org/id/metropolitan-district-council/wolverhampton","Capita Resourcing Limited(Veredus)","01431692","1,242.90","Agency Staff","130000019","10/04/14","Children in Need & Child Protection","Duty and Assessment - Section 17","R1100"
"Wolverhampton City Council","http://opendatacommunities.org/id/metropolitan-district-council/wolverhampton","Capita Resourcing Limited(Veredus)","01428093","1,232.10","Agency Staff","130000021","10/04/14","Children in Need & Child Protection","Duty and Assessment - Section 17","R1100"
"Wolverhampton City Council","http://opendatacommunities.org/id/metropolitan-district-council/wolverhampton","Capita Resourcing Limited(Veredus)","01443040","453.75","Agency Staff","130000074","10/04/14","Children in Need & Child Protection","Duty and Assessment - Section 17","R1100"
"Wolverhampton City Council","http://opendatacommunities.org/id/metropolitan-district-council/wolverhampton","Capita Resourcing Limited(Veredus)","01429527","1,232.10","Agency Staff","130000022","10/04/14","Children in Need & Child Protection","Duty and Assessment - Section 17","R1100"
"Wolverhampton City Council","http://opendatacommunities.org/id/metropolitan-district-council/wolverhampton","Capita Resourcing Limited(Veredus)","01426582","1,532.54","Agency Staff","130000016","10/04/14","Children in Need & Child Protection","North East Locality Service","R1100"
"Wolverhampton City Council","http://opendatacommunities.org/id/metropolitan-district-council/wolverhampton","Capita Resourcing Limited(Veredus)","01443028","499.50","Agency Staff","130000067","10/04/14","Children in Need & Child Protection","Duty and Assessment - Section 17","R1100"
"Wolverhampton City Council","http://opendatacommunities.org/id/metropolitan-district-council/wolverhampton","Capita Resourcing Limited(Veredus)","01430204","1,300.50","Agency Staff","130000024","10/04/14","Children in Need & Child Protection","Duty and Assessment - Section 17","R1100"
"Wolverhampton City Council","http://opendatacommunities.org/id/metropolitan-district-council/wolverhampton","Capita Resourcing Limited(Veredus)","01430950","61.80","Agency Staff","130000026","10/04/14","Learning Disability Provider","Duke Street Bungalows","R1100"
"Wolverhampton City Council","http://opendatacommunities.org/id/metropolitan-district-council/wolverhampton","Capita Resourcing Limited(Veredus)","01430943","1,001.95","Agency Staff","130000025","10/04/14","Children in Need & Child Protection","Duty and Assessment - Section 17","R1100"
"Wolverhampton City Council","http://opendatacommunities.org/id/metropolitan-district-council/wolverhampton","Capita Resourcing Limited(Veredus)","01429533","1,261.70","Agency Staff","130000023","10/04/14","Children in Need & Child Protection","Duty and Assessment - Section 17","R1100"
"Wolverhampton City Council","http://opendatacommunities.org/id/metropolitan-district-council/wolverhampton","Capita Resourcing Limited(Veredus)","01435959","403.08","Agency Staff","130000044","10/04/14","Learning Disability Provider","Duke Street Bungalows","R1100"
"Wolverhampton City Council","http://opendatacommunities.org/id/metropolitan-district-council/wolverhampton","Capita Resourcing Limited(Veredus)","01443017","1,232.10","Agency Staff","130000065","10/04/14","Children in Need & Child Protection","Duty and Assessment - Section 17","R1100"
"Wolverhampton City Council","http://opendatacommunities.org/id/metropolitan-district-council/wolverhampton","Capita Resourcing Limited(Veredus)","500070116","755.54","Agency Staff","130000009","10/04/14","Looked After Children","Looked After Team 1","R1100"
"Wolverhampton City Council","http://opendatacommunities.org/id/metropolitan-district-council/wolverhampton","Capita Resourcing Limited(Veredus)","01424457","1,244.10","Agency Staff","130000012","10/04/14","Children in Need & Child Protection","Duty and Assessment - Section 17","R1100"
"Wolverhampton City Council","http://opendatacommunities.org/id/metropolitan-district-council/wolverhampton","Capita Resourcing Limited(Veredus)","01425212","1,241.30","Agency Staff","130000013","10/04/14","Children in Need & Child Protection","Duty and Assessment - Section 17","R1100"
"Wolverhampton City Council","http://opendatacommunities.org/id/metropolitan-district-council/wolverhampton","Capita Resourcing Limited(Veredus)","01432397","1,232.10","Agency Staff","130000027","10/04/14","Children in Need & Child Protection","Duty and Assessment - Section 17","R1100"
"Wolverhampton City Council","http://opendatacommunities.org/id/metropolitan-district-council/wolverhampton","Capita Resourcing Limited(Veredus)","01426585","1,532.54","Agency Staff","130000018","10/04/14","Children in Need & Child Protection","North East Locality Service","R1100"
"Wolverhampton City Council","http://opendatacommunities.org/id/metropolitan-district-council/wolverhampton","Dudley MBC (Queen Victoria Primary)","P8024520140403","300.00","Grant Payments to Individuals","1","10/04/14","Looked After Children","LAC Education Team (LACE)","R6402"
"Wolverhampton City Council","http://opendatacommunities.org/id/metropolitan-district-council/wolverhampton","Eden Brown Limited","3S123599","371.80","Agency Staff","130000006","10/04/14","Learning Disability Provider","Duke Street Bungalows","R1100"
"Wolverhampton City Council","http://opendatacommunities.org/id/metropolitan-district-council/wolverhampton","Elysian Field Limited","P8024620140403","684.00","Client Allowances","2","10/04/14","Looked After Children","LAC Transitions Team","R6301"
"Wolverhampton City Council","http://opendatacommunities.org/id/metropolitan-district-council/wolverhampton","Elysian Field Limited","P8024620140403","684.00","Client Allowances","2","10/04/14","Looked After Children","LAC Transitions Team","R6301"
"Wolverhampton City Council","http://opendatacommunities.org/id/metropolitan-district-council/wolverhampton","Hollyfast Primary School","P8024520140403","300.00","Grant Payments to Individuals","1","10/04/14","Looked After Children","LAC Education Team (LACE)","R6402"
"Wolverhampton City Council","http://opendatacommunities.org/id/metropolitan-district-council/wolverhampton","Longford Primary School","P8024520140403","300.00","Grant Payments to Individuals","1","10/04/14","Looked After Children","LAC Education Team (LACE)","R6402"
"Wolverhampton City Council","http://opendatacommunities.org/id/metropolitan-district-council/wolverhampton","Moat Hall Primary School","P8024520140403","600.00","Grant Payments to Individuals","1","10/04/14","Looked After Children","LAC Education Team (LACE)","R6402"
"Wolverhampton City Council","http://opendatacommunities.org/id/metropolitan-district-council/wolverhampton","Selly Oak Trust School","P8024520140403","300.00","Grant Payments to Individuals","1","10/04/14","Looked After Children","LAC Education Team (LACE)","R6402"
"Wolverhampton City Council","http://opendatacommunities.org/id/metropolitan-district-council/wolverhampton","St Mary�s the Mount Catholic Primary School","P8024520140403","300.00","Grant Payments to Individuals","1","10/04/14","Looked After Children","LAC Education Team (LACE)","R6402"
"Wolverhampton City Council","http://opendatacommunities.org/id/metropolitan-district-council/wolverhampton","St Mary�S Ce Primary School","P8024520140403","300.00","Grant Payments to Individuals","1","10/04/14","Looked After Children","LAC Education Team (LACE)","R6402"
"Wolverhampton City Council","http://opendatacommunities.org/id/metropolitan-district-council/wolverhampton","St Mary�S Ce Primary School","P8024520140403","300.00","Grant Payments to Individuals","1","10/04/14","Looked After Children","LAC Education Team (LACE)","R6402"
"Wolverhampton City Council","http://opendatacommunities.org/id/metropolitan-district-council/wolverhampton","Wolverhampton Ymca "Badger Court"","P8024620140403","178.66","Client Allowances","2","10/04/14","Looked After Children","LAC Transitions Team","R6301"
"Wolverhampton City Council","http://opendatacommunities.org/id/metropolitan-district-council/wolverhampton","Wolverhampton Ymca "Badger Court"","P8024620140403","178.66","Client Allowances","2","10/04/14","Looked After Children","LAC Transitions Team","R6301"
"Wolverhampton City Council","http://opendatacommunities.org/id/metropolitan-district-council/wolverhampton","Wolverhampton Ymca "Badger Court"","P8024620140403","178.66","Client Allowances","2","10/04/14","Looked After Children","LAC Transitions Team","R6301"
"Wolverhampton City Council","http://opendatacommunities.org/id/metropolitan-district-council/wolverhampton","A.B.C.- Countdown Cars Limited","963","56.00","Subsistence","130000034","10/04/14","Carer Support","Carers Support","R4610"
"Wolverhampton City Council","http://opendatacommunities.org/id/metropolitan-district-council/wolverhampton","Access Tail Lift Services Limited","17416","57.44","Services - Professional Fees","190001356","14/04/14","Fleet Services","Fleet Management","R4400"
"Wolverhampton City Council","http://opendatacommunities.org/id/metropolitan-district-council/wolverhampton","Access Tail Lift Services Limited","17416","57.44","Services - Professional Fees","190001356","14/04/14","Fleet Services","Fleet Management","R4400"
"Wolverhampton City Council","http://opendatacommunities.org/id/metropolitan-district-council/wolverhampton","Access Tail Lift Services Limited","17445","57.44","Services - Professional Fees","190001420","14/04/14","Fleet Services","Fleet Management","R4400"
"Wolverhampton City Council","http://opendatacommunities.org/id/metropolitan-district-council/wolverhampton","Access Tail Lift Services Limited","17445","57.44","Services - Professional Fees","190001420","14/04/14","Fleet Services","Fleet Management","R4400"
"Wolverhampton City Council","http://opendatacommunities.org/id/metropolitan-district-council/wolverhampton","Angel Springs Limited","2213288","92.70","Equipment - Purchase","190001255","14/04/14","Fleet Services","Fleet Management","R4000"
"Wolverhampton City Council","http://opendatacommunities.org/id/metropolitan-district-council/wolverhampton","Angel Springs Limited","2213288","81.00","Equipment - Purchase","190001255","14/04/14","Fleet Services","Fleet Management","R4000"
"Wolverhampton City Council","http://opendatacommunities.org/id/metropolitan-district-council/wolverhampton","Angel Springs Limited","2180514","64.80","Equipment - Purchase","190001390","14/04/14","Fleet Services","Fleet Management","R4000"
"Wolverhampton City Council","http://opendatacommunities.org/id/metropolitan-district-council/wolverhampton","Arthur Brett (Catering) Limited","ID557559","24.62","Provisions (Not for resale)","130000201","14/04/14","Older People Provider Services","Warstones Resource Centre","R4101"
"Wolverhampton City Council","http://opendatacommunities.org/id/metropolitan-district-council/wolverhampton","Ashton Engineering Co. Limited","2640","195.00","Equipment - Purchase","190001256","14/04/14","Fleet Services","Fleet Management","R4000"
"Wolverhampton City Council","http://opendatacommunities.org/id/metropolitan-district-council/wolverhampton","Ashton Engineering Co. Limited","2640","275.00","Equipment - Purchase","190001256","14/04/14","Fleet Services","Fleet Management","R4000"
"Wolverhampton City Council","http://opendatacommunities.org/id/metropolitan-district-council/wolverhampton","Askews & Holts Library Services Limited","4266873","282.02","Books","130045043","14/04/14","Library Services","Global Budgets","R4309"
"Wolverhampton City Council","http://opendatacommunities.org/id/metropolitan-district-council/wolverhampton","Bearing Man Limited","327230-00","64.20","Equipment - Purchase","190001257","14/04/14","Fleet Services","Fleet Management","R4000"
"Wolverhampton City Council","http://opendatacommunities.org/id/metropolitan-district-council/wolverhampton","Berendsen UK Limited","SN1647776","364.24","Protective Clothing","190001288","14/04/14","Fleet Services","Fleet Management","R4200"
"Wolverhampton City Council","http://opendatacommunities.org/id/metropolitan-district-council/wolverhampton","Boc Limited","3023391188","29.96","Equipment - Purchase","190001357","14/04/14","Fleet Services","Fleet Management","R4000"
"Wolverhampton City Council","http://opendatacommunities.org/id/metropolitan-district-council/wolverhampton","Briggs Equiptment UK Limited","307180537","424.02","Petrol","190001313","14/04/14","Fleet Services","Fleet Management","R3000"
"Wolverhampton City Council","http://opendatacommunities.org/id/metropolitan-district-council/wolverhampton","Bristow & Sutor","79739","10.00","Services - Professional Fees","130000171","14/04/14","Revenues & Benefits","Revenues","R4400"
"Wolverhampton City Council","http://opendatacommunities.org/id/metropolitan-district-council/wolverhampton","Commercial Body Fittings Limited","0534477M","5.16","Equipment - Purchase","190001239","14/04/14","Fleet Services","Fleet Management","R4000"
"Wolverhampton City Council","http://opendatacommunities.org/id/metropolitan-district-council/wolverhampton","Dennis Eagle Limited","DE10777079","113.08","Equipment - Purchase","190001322","14/04/14","Fleet Services","Fleet Management","R4000"
"Wolverhampton City Council","http://opendatacommunities.org/id/metropolitan-district-council/wolverhampton","Dennis Eagle Limited","DE10777081","67.55","Equipment - Purchase","190001324","14/04/14","Fleet Services","Fleet Management","R4000"
"Wolverhampton City Council","http://opendatacommunities.org/id/metropolitan-district-council/wolverhampton","Dennis Eagle Limited","DE10777080","107.47","Equipment - Purchase","190001323","14/04/14","Fleet Services","Fleet Management","R4000"
"Wolverhampton City Council","http://opendatacommunities.org/id/metropolitan-district-council/wolverhampton","Dennis Eagle Limited","DE10777423","23.14","Equipment - Purchase","190001325","14/04/14","Fleet Services","Fleet Management","R4000"
"Wolverhampton City Council","http://opendatacommunities.org/id/metropolitan-district-council/wolverhampton","Dennis Eagle Limited","DE10777764","107.47","Equipment - Purchase","190001328","14/04/14","Fleet Services","Fleet Management","R4000"
"Wolverhampton City Council","http://opendatacommunities.org/id/metropolitan-district-council/wolverhampton","Dennis Eagle Limited","DE10777764","67.55","Equipment - Purchase","190001328","14/04/14","Fleet Services","Fleet Management","R4000"
"Wolverhampton City Council","http://opendatacommunities.org/id/metropolitan-district-council/wolverhampton","Dennis Eagle Limited","DE10777762","438.27","Equipment - Purchase","190001326","14/04/14","Fleet Services","Fleet Management","R4000"
"Wolverhampton City Council","http://opendatacommunities.org/id/metropolitan-district-council/wolverhampton","Dennis Eagle Limited","DE10777763","198.34","Equipment - Purchase","190001327","14/04/14","Fleet Services","Fleet Management","R4000"
"Wolverhampton City Council","http://opendatacommunities.org/id/metropolitan-district-council/wolverhampton","Dennis Eagle Limited","DE10777763","15.06","Equipment - Purchase","190001327","14/04/14","Fleet Services","Fleet Management","R4000"
"Wolverhampton City Council","http://opendatacommunities.org/id/metropolitan-district-council/wolverhampton","Dennis Eagle Limited","DE10777763","19.67","Equipment - Purchase","190001327","14/04/14","Fleet Services","Fleet Management","R4000"
"Wolverhampton City Council","http://opendatacommunities.org/id/metropolitan-district-council/wolverhampton","Dennis Eagle Limited","DE10777763","22.42","Equipment - Purchase","190001327","14/04/14","Fleet Services","Fleet Management","R4000"
"Wolverhampton City Council","http://opendatacommunities.org/id/metropolitan-district-council/wolverhampton","Dennis Eagle Limited","DE10777763","11.02","Equipment - Purchase","190001327","14/04/14","Fleet Services","Fleet Management","R4000"
"Wolverhampton City Council","http://opendatacommunities.org/id/metropolitan-district-council/wolverhampton","Dennis Eagle Limited","DE10777763","15.83","Equipment - Purchase","190001327","14/04/14","Fleet Services","Fleet Management","R4000"
"Wolverhampton City Council","http://opendatacommunities.org/id/metropolitan-district-council/wolverhampton","Dennis Eagle Limited","DE10777763","15.06","Equipment - Purchase","190001327","14/04/14","Fleet Services","Fleet Management","R4000"
"Wolverhampton City Council","http://opendatacommunities.org/id/metropolitan-district-council/wolverhampton","Dennis Eagle Limited","DE10775784","89.81","Equipment - Purchase","190001426","14/04/14","Fleet Services","Fleet Management","R4000"
"Wolverhampton City Council","http://opendatacommunities.org/id/metropolitan-district-council/wolverhampton","Dennis Eagle Limited","DE10777078","67.16","Equipment - Purchase","190001274","14/04/14","Fleet Services","Fleet Management","R4000"
"Wolverhampton City Council","http://opendatacommunities.org/id/metropolitan-district-council/wolverhampton","Dennis Eagle Limited","DE10777078","67.16","Equipment - Purchase","190001274","14/04/14","Fleet Services","Fleet Management","R4000"
"Wolverhampton City Council","http://opendatacommunities.org/id/metropolitan-district-council/wolverhampton","Dennis Eagle Limited","DE10776726","209.11","Equipment - Purchase","190001273","14/04/14","Fleet Services","Fleet Management","R4000"
"Wolverhampton City Council","http://opendatacommunities.org/id/metropolitan-district-council/wolverhampton","Des Shelley Shafts","70674","155.00","Equipment - Purchase","190001359","14/04/14","Fleet Services","Fleet Management","R4000"
"Wolverhampton City Council","http://opendatacommunities.org/id/metropolitan-district-council/wolverhampton","Eden Brown Limited","3S123561","93.60","Agency Staff","130000000","14/04/14","Learning Disability Provider","Church Street","R1100"
"Wolverhampton City Council","http://opendatacommunities.org/id/metropolitan-district-council/wolverhampton","Evans Halshaw Ford","722613","68.30","Equipment - Purchase","190001360","14/04/14","Fleet Services","Fleet Management","R4000"
"Wolverhampton City Council","http://opendatacommunities.org/id/metropolitan-district-council/wolverhampton","Evans Halshaw Ford","722676","7.04","Equipment - Purchase","190001361","14/04/14","Fleet Services","Fleet Management","R4000"
"Wolverhampton City Council","http://opendatacommunities.org/id/metropolitan-district-council/wolverhampton","Evans Halshaw Ford","722738","10.56","Equipment - Purchase","190001362","14/04/14","Fleet Services","Fleet Management","R4000"
"Wolverhampton City Council","http://opendatacommunities.org/id/metropolitan-district-council/wolverhampton","Evans Halshaw Ford","722786","32.75","Equipment - Purchase","190001363","14/04/14","Fleet Services","Fleet Management","R4000"
"Wolverhampton City Council","http://opendatacommunities.org/id/metropolitan-district-council/wolverhampton","Evans Halshaw Ford","722795","30.11","Equipment - Purchase","190001364","14/04/14","Fleet Services","Fleet Management","R4000"
"Wolverhampton City Council","http://opendatacommunities.org/id/metropolitan-district-council/wolverhampton","Evans Halshaw Ford","722856","34.57","Equipment - Purchase","190001365","14/04/14","Fleet Services","Fleet Management","R4000"
"Wolverhampton City Council","http://opendatacommunities.org/id/metropolitan-district-council/wolverhampton","Evans Halshaw Ford","723757","45.79","Equipment - Purchase","190001261","14/04/14","Fleet Services","Fleet Management","R4000"
"Wolverhampton City Council","http://opendatacommunities.org/id/metropolitan-district-council/wolverhampton","Evans Halshaw Ford","724117","32.75","Equipment - Purchase","190001262","14/04/14","Fleet Services","Fleet Management","R4000"
"Wolverhampton City Council","http://opendatacommunities.org/id/metropolitan-district-council/wolverhampton","Evans Halshaw Ford","724260","2.01","Equipment - Purchase","190001263","14/04/14","Fleet Services","Fleet Management","R4000"
"Wolverhampton City Council","http://opendatacommunities.org/id/metropolitan-district-council/wolverhampton","Evans Halshaw Ford","724260","20.02","Equipment - Purchase","190001263","14/04/14","Fleet Services","Fleet Management","R4000"
"Wolverhampton City Council","http://opendatacommunities.org/id/metropolitan-district-council/wolverhampton","Evans Halshaw Ford","723686","12.11","Equipment - Purchase","190001421","14/04/14","Fleet Services","Fleet Management","R4000"
"Wolverhampton City Council","http://opendatacommunities.org/id/metropolitan-district-council/wolverhampton","Evans Halshaw Ford","162380","285.00","Services - Professional Fees","190001419","14/04/14","Fleet Services","Fleet Management","R4400"
"Wolverhampton City Council","http://opendatacommunities.org/id/metropolitan-district-council/wolverhampton","Evans Halshaw Ford","723696","54.44","Equipment - Purchase","190001422","14/04/14","Fleet Services","Fleet Management","R4000"
"Wolverhampton City Council","http://opendatacommunities.org/id/metropolitan-district-council/wolverhampton","Evans Halshaw Ford","723102","10.77","Equipment - Purchase","190001399","14/04/14","Fleet Services","Fleet Management","R4000"
"Wolverhampton City Council","http://opendatacommunities.org/id/metropolitan-district-council/wolverhampton","Evans Halshaw Ford","723271","110.24","Equipment - Purchase","190001400","14/04/14","Fleet Services","Fleet Management","R4000"
"Wolverhampton City Council","http://opendatacommunities.org/id/metropolitan-district-council/wolverhampton","Evans Halshaw Ford","723296","101.85","Equipment - Purchase","190001401","14/04/14","Fleet Services","Fleet Management","R4000"
"Wolverhampton City Council","http://opendatacommunities.org/id/metropolitan-district-council/wolverhampton","Evans Halshaw Ford","724850","17.99","Equipment - Purchase","190001315","14/04/14","Fleet Services","Fleet Management","R4000"
"Wolverhampton City Council","http://opendatacommunities.org/id/metropolitan-district-council/wolverhampton","Evans Halshaw Ford","724320","128.05","Equipment - Purchase","190001264","14/04/14","Fleet Services","Fleet Management","R4000"
"Wolverhampton City Council","http://opendatacommunities.org/id/metropolitan-district-council/wolverhampton","Evans Halshaw Ford","724765","22.45","Equipment - Purchase","190001314","14/04/14","Fleet Services","Fleet Management","R4000"
"Wolverhampton City Council","http://opendatacommunities.org/id/metropolitan-district-council/wolverhampton","Flying Penguin Enterprises","171520","43.14","Equipment - Purchase","190001353","14/04/14","Fleet Services","Fleet Management","R4000"
"Wolverhampton City Council","http://opendatacommunities.org/id/metropolitan-district-council/wolverhampton","Flying Penguin Enterprises","171520","6.27","Equipment - Purchase","190001353","14/04/14","Fleet Services","Fleet Management","R4000"
"Wolverhampton City Council","http://opendatacommunities.org/id/metropolitan-district-council/wolverhampton","Flying Penguin Enterprises","171574","8.52","Equipment - Purchase","190001354","14/04/14","Fleet Services","Fleet Management","R4000"
"Wolverhampton City Council","http://opendatacommunities.org/id/metropolitan-district-council/wolverhampton","Flying Penguin Enterprises","171574","7.86","Equipment - Purchase","190001354","14/04/14","Fleet Services","Fleet Management","R4000"
"Wolverhampton City Council","http://opendatacommunities.org/id/metropolitan-district-council/wolverhampton","Flying Penguin Enterprises","171726","14.94","Equipment - Purchase","190001355","14/04/14","Fleet Services","Fleet Management","R4000"
"Wolverhampton City Council","http://opendatacommunities.org/id/metropolitan-district-council/wolverhampton","Flying Penguin Enterprises","172516","13.32","Equipment - Purchase","190001305","14/04/14","Fleet Services","Fleet Management","R4000"
"Wolverhampton City Council","http://opendatacommunities.org/id/metropolitan-district-council/wolverhampton","Flying Penguin Enterprises","172516","2.72","Equipment - Purchase","190001305","14/04/14","Fleet Services","Fleet Management","R4000"
"Wolverhampton City Council","http://opendatacommunities.org/id/metropolitan-district-council/wolverhampton","Flying Penguin Enterprises","172516","47.52","Equipment - Purchase","190001305","14/04/14","Fleet Services","Fleet Management","R4000"
"Wolverhampton City Council","http://opendatacommunities.org/id/metropolitan-district-council/wolverhampton","Flying Penguin Enterprises","172516","66.60","Equipment - Purchase","190001305","14/04/14","Fleet Services","Fleet Management","R4000"
"Wolverhampton City Council","http://opendatacommunities.org/id/metropolitan-district-council/wolverhampton","Flying Penguin Enterprises","172516","4.83","Equipment - Purchase","190001305","14/04/14","Fleet Services","Fleet Management","R4000"
"Wolverhampton City Council","http://opendatacommunities.org/id/metropolitan-district-council/wolverhampton","Flying Penguin Enterprises","172303","7.47","Equipment - Purchase","190001303","14/04/14","Fleet Services","Fleet Management","R4000"
"Wolverhampton City Council","http://opendatacommunities.org/id/metropolitan-district-council/wolverhampton","Flying Penguin Enterprises","172303","14.98","Equipment - Purchase","190001303","14/04/14","Fleet Services","Fleet Management","R4000"
"Wolverhampton City Council","http://opendatacommunities.org/id/metropolitan-district-council/wolverhampton","Flying Penguin Enterprises","172303","6.46","Equipment - Purchase","190001303","14/04/14","Fleet Services","Fleet Management","R4000"
"Wolverhampton City Council","http://opendatacommunities.org/id/metropolitan-district-council/wolverhampton","Flying Penguin Enterprises","172303","4.18","Equipment - Purchase","190001303","14/04/14","Fleet Services","Fleet Management","R4000"
"Wolverhampton City Council","http://opendatacommunities.org/id/metropolitan-district-council/wolverhampton","Flying Penguin Enterprises","172390","15.53","Equipment - Purchase","190001304","14/04/14","Fleet Services","Fleet Management","R4000"
"Wolverhampton City Council","http://opendatacommunities.org/id/metropolitan-district-council/wolverhampton","Flying Penguin Enterprises","172127","31.06","Equipment - Purchase","190001302","14/04/14","Fleet Services","Fleet Management","R4000"
"Wolverhampton City Council","http://opendatacommunities.org/id/metropolitan-district-council/wolverhampton","Flying Penguin Enterprises","172516","21.72","Equipment - Purchase","190001305","14/04/14","Fleet Services","Fleet Management","R4000"
"Wolverhampton City Council","http://opendatacommunities.org/id/metropolitan-district-council/wolverhampton","Flying Penguin Enterprises","172516","5.82","Equipment - Purchase","190001305","14/04/14","Fleet Services","Fleet Management","R4000"
"Wolverhampton City Council","http://opendatacommunities.org/id/metropolitan-district-council/wolverhampton","Flying Penguin Enterprises","172516","11.36","Equipment - Purchase","190001305","14/04/14","Fleet Services","Fleet Management","R4000"
"Wolverhampton City Council","http://opendatacommunities.org/id/metropolitan-district-council/wolverhampton","Flying Penguin Enterprises","172516","8.25","Equipment - Purchase","190001305","14/04/14","Fleet Services","Fleet Management","R4000"
"Wolverhampton City Council","http://opendatacommunities.org/id/metropolitan-district-council/wolverhampton","Flying Penguin Enterprises","172516","14.00","Equipment - Purchase","190001305","14/04/14","Fleet Services","Fleet Management","R4000"
"Wolverhampton City Council","http://opendatacommunities.org/id/metropolitan-district-council/wolverhampton","Flying Penguin Enterprises","171747","24.34","Equipment - Purchase","190001389","14/04/14","Fleet Services","Fleet Management","R4000"
"Wolverhampton City Council","http://opendatacommunities.org/id/metropolitan-district-council/wolverhampton","Flying Penguin Enterprises","171747","14.04","Equipment - Purchase","190001389","14/04/14","Fleet Services","Fleet Management","R4000"
"Wolverhampton City Council","http://opendatacommunities.org/id/metropolitan-district-council/wolverhampton","Flying Penguin Enterprises","171747","9.54","Equipment - Purchase","190001389","14/04/14","Fleet Services","Fleet Management","R4000"
"Wolverhampton City Council","http://opendatacommunities.org/id/metropolitan-district-council/wolverhampton","Flying Penguin Enterprises","171747","23.66","Equipment - Purchase","190001389","14/04/14","Fleet Services","Fleet Management","R4000"
"Wolverhampton City Council","http://opendatacommunities.org/id/metropolitan-district-council/wolverhampton","Flying Penguin Enterprises","171747","40.14","Equipment - Purchase","190001389","14/04/14","Fleet Services","Fleet Management","R4000"
"Wolverhampton City Council","http://opendatacommunities.org/id/metropolitan-district-council/wolverhampton","Glaze Auto Parts Limited","IN552384","8.48","Equipment - Purchase","190001335","14/04/14","Fleet Services","Fleet Management","R4000"
"Wolverhampton City Council","http://opendatacommunities.org/id/metropolitan-district-council/wolverhampton","Glaze Auto Parts Limited","IN552496","33.18","Equipment - Purchase","190001336","14/04/14","Fleet Services","Fleet Management","R4000"
"Wolverhampton City Council","http://opendatacommunities.org/id/metropolitan-district-council/wolverhampton","Glaze Auto Parts Limited","IN552224","22.24","Equipment - Purchase","190001332","14/04/14","Fleet Services","Fleet Management","R4000"
"Wolverhampton City Council","http://opendatacommunities.org/id/metropolitan-district-council/wolverhampton","Glaze Auto Parts Limited","IN552232","179.33","Equipment - Purchase","190001333","14/04/14","Fleet Services","Fleet Management","R4000"
"Wolverhampton City Council","http://opendatacommunities.org/id/metropolitan-district-council/wolverhampton","Glaze Auto Parts Limited","IN552141","5.25","Equipment - Purchase","190001330","14/04/14","Fleet Services","Fleet Management","R4000"
"Wolverhampton City Council","http://opendatacommunities.org/id/metropolitan-district-council/wolverhampton","Glaze Auto Parts Limited","IN552212","16.38","Equipment - Purchase","190001331","14/04/14","Fleet Services","Fleet Management","R4000"
"Wolverhampton City Council","http://opendatacommunities.org/id/metropolitan-district-council/wolverhampton","Glaze Auto Parts Limited","IN552224","21.36","Equipment - Purchase","190001332","14/04/14","Fleet Services","Fleet Management","R4000"
"Wolverhampton City Council","http://opendatacommunities.org/id/metropolitan-district-council/wolverhampton","Glaze Auto Parts Limited","IN552135","1.47","Equipment - Purchase","190001329","14/04/14","Fleet Services","Fleet Management","R4000"
"Wolverhampton City Council","http://opendatacommunities.org/id/metropolitan-district-council/wolverhampton","Glaze Auto Parts Limited","IN552296","9.90","Equipment - Purchase","190001334","14/04/14","Fleet Services","Fleet Management","R4000"
"Wolverhampton City Council","http://opendatacommunities.org/id/metropolitan-district-council/wolverhampton","Glaze Auto Parts Limited","IN552296","1.64","Equipment - Purchase","190001334","14/04/14","Fleet Services","Fleet Management","R4000"
"Wolverhampton City Council","http://opendatacommunities.org/id/metropolitan-district-council/wolverhampton","Glaze Auto Parts Limited","IN552135","7.20","Equipment - Purchase","190001329","14/04/14","Fleet Services","Fleet Management","R4000"
"Wolverhampton City Council","http://opendatacommunities.org/id/metropolitan-district-council/wolverhampton","Glaze Auto Parts Limited","CR106947.2","-15.00","Equipment - Purchase","190001271","14/04/14","Fleet Services","Fleet Management","R4000"
"Wolverhampton City Council","http://opendatacommunities.org/id/metropolitan-district-council/wolverhampton","Glaze Auto Parts Limited","CR106947.3","-30.00","Equipment - Purchase","190001272","14/04/14","Fleet Services","Fleet Management","R4000"
"Wolverhampton City Council","http://opendatacommunities.org/id/metropolitan-district-council/wolverhampton","Glaze Auto Parts Limited","IN551261","51.65","Equipment - Purchase","190001279","14/04/14","Fleet Services","Fleet Management","R4000"
"Wolverhampton City Council","http://opendatacommunities.org/id/metropolitan-district-council/wolverhampton","Glaze Auto Parts Limited","IN551261","21.36","Equipment - Purchase","190001279","14/04/14","Fleet Services","Fleet Management","R4000"
"Wolverhampton City Council","http://opendatacommunities.org/id/metropolitan-district-council/wolverhampton","Glaze Auto Parts Limited","IN551261","22.24","Equipment - Purchase","190001279","14/04/14","Fleet Services","Fleet Management","R4000"
"Wolverhampton City Council","http://opendatacommunities.org/id/metropolitan-district-council/wolverhampton","Glaze Auto Parts Limited","IN551261","51.99","Equipment - Purchase","190001279","14/04/14","Fleet Services","Fleet Management","R4000"
"Wolverhampton City Council","http://opendatacommunities.org/id/metropolitan-district-council/wolverhampton","Glaze Auto Parts Limited","CR106947.1","-35.39","Services - Professional Fees","190001270","14/04/14","Fleet Services","Fleet Management","R4400"
"Wolverhampton City Council","http://opendatacommunities.org/id/metropolitan-district-council/wolverhampton","Glaze Auto Parts Limited","IN551220","15.00","Equipment - Purchase","190001278","14/04/14","Fleet Services","Fleet Management","R4000"
"Wolverhampton City Council","http://opendatacommunities.org/id/metropolitan-district-council/wolverhampton","Glaze Auto Parts Limited","IN552181","18.24","Equipment - Purchase","190001286","14/04/14","Fleet Services","Fleet Management","R4000"
"Wolverhampton City Council","http://opendatacommunities.org/id/metropolitan-district-council/wolverhampton","Glaze Auto Parts Limited","IN550814","3.22","Services - Professional Fees","190001277","14/04/14","Fleet Services","Fleet Management","R4400"
"Wolverhampton City Council","http://opendatacommunities.org/id/metropolitan-district-council/wolverhampton","Glaze Auto Parts Limited","IN551490","9.41","Equipment - Purchase","190001281","14/04/14","Fleet Services","Fleet Management","R4000"
"Wolverhampton City Council","http://opendatacommunities.org/id/metropolitan-district-council/wolverhampton","Glaze Auto Parts Limited","IN552180","18.28","Equipment - Purchase","190001285","14/04/14","Fleet Services","Fleet Management","R4000"
"Wolverhampton City Council","http://opendatacommunities.org/id/metropolitan-district-council/wolverhampton","Glaze Auto Parts Limited","IN552180","3.97","Equipment - Purchase","190001285","14/04/14","Fleet Services","Fleet Management","R4000"
"Wolverhampton City Council","http://opendatacommunities.org/id/metropolitan-district-council/wolverhampton","Glaze Auto Parts Limited","IN551782","31.08","Equipment - Purchase","190001283","14/04/14","Fleet Services","Fleet Management","R4000"
"Wolverhampton City Council","http://opendatacommunities.org/id/metropolitan-district-council/wolverhampton","Glaze Auto Parts Limited","IN551556","206.51","Equipment - Purchase","190001282","14/04/14","Fleet Services","Fleet Management","R4000"
"Wolverhampton City Council","http://opendatacommunities.org/id/metropolitan-district-council/wolverhampton","Glaze Auto Parts Limited","IN550814","2.84","Services - Professional Fees","190001277","14/04/14","Fleet Services","Fleet Management","R4400"
"Wolverhampton City Council","http://opendatacommunities.org/id/metropolitan-district-council/wolverhampton","Glaze Auto Parts Limited","IN550814","43.60","Services - Professional Fees","190001277","14/04/14","Fleet Services","Fleet Management","R4400"
"Wolverhampton City Council","http://opendatacommunities.org/id/metropolitan-district-council/wolverhampton","Glaze Auto Parts Limited","IN551262","30.00","Equipment - Purchase","190001280","14/04/14","Fleet Services","Fleet Management","R4000"
"Wolverhampton City Council","http://opendatacommunities.org/id/metropolitan-district-council/wolverhampton","Glaze Auto Parts Limited","IN551262","72.31","Equipment - Purchase","190001280","14/04/14","Fleet Services","Fleet Management","R4000"
"Wolverhampton City Council","http://opendatacommunities.org/id/metropolitan-district-council/wolverhampton","Glaze Auto Parts Limited","IN551220","101.58","Equipment - Purchase","190001278","14/04/14","Fleet Services","Fleet Management","R4000"
"Wolverhampton City Council","http://opendatacommunities.org/id/metropolitan-district-council/wolverhampton","Glaze Auto Parts Limited","IN551851","101.58","Equipment - Purchase","190001284","14/04/14","Fleet Services","Fleet Management","R4000"
"Wolverhampton City Council","http://opendatacommunities.org/id/metropolitan-district-council/wolverhampton","Glaze Auto Parts Limited","IN551851","15.00","Equipment - Purchase","190001284","14/04/14","Fleet Services","Fleet Management","R4000"
"Wolverhampton City Council","http://opendatacommunities.org/id/metropolitan-district-council/wolverhampton","Glaze Auto Parts Limited","IN551147","6.17","Equipment - Purchase","190001405","14/04/14","Fleet Services","Fleet Management","R4000"
"Wolverhampton City Council","http://opendatacommunities.org/id/metropolitan-district-council/wolverhampton","Glaze Auto Parts Limited","IN551161","36.41","Equipment - Purchase","190001406","14/04/14","Fleet Services","Fleet Management","R4000"
"Wolverhampton City Council","http://opendatacommunities.org/id/metropolitan-district-council/wolverhampton","Glaze Auto Parts Limited","IN551195","20.26","Equipment - Purchase","190001407","14/04/14","Fleet Services","Fleet Management","R4000"
"Wolverhampton City Council","http://opendatacommunities.org/id/metropolitan-district-council/wolverhampton","Glaze Auto Parts Limited","IN551264","3.97","Equipment - Purchase","190001408","14/04/14","Fleet Services","Fleet Management","R4000"
"Wolverhampton City Council","http://opendatacommunities.org/id/metropolitan-district-council/wolverhampton","Glaze Auto Parts Limited","IN551264","16.14","Equipment - Purchase","190001408","14/04/14","Fleet Services","Fleet Management","R4000"
"Wolverhampton City Council","http://opendatacommunities.org/id/metropolitan-district-council/wolverhampton","Glaze Auto Parts Limited","IN550604","22.24","Equipment - Purchase","190001372","14/04/14","Fleet Services","Fleet Management","R4000"
"Wolverhampton City Council","http://opendatacommunities.org/id/metropolitan-district-council/wolverhampton","Glaze Auto Parts Limited","IN550604","21.36","Equipment - Purchase","190001372","14/04/14","Fleet Services","Fleet Management","R4000"
"Wolverhampton City Council","http://opendatacommunities.org/id/metropolitan-district-council/wolverhampton","Glaze Auto Parts Limited","IN550679","5.00","Equipment - Purchase","190001373","14/04/14","Fleet Services","Fleet Management","R4000"
"Wolverhampton City Council","http://opendatacommunities.org/id/metropolitan-district-council/wolverhampton","Glaze Auto Parts Limited","IN550930","143.37","Equipment - Purchase","190001374","14/04/14","Fleet Services","Fleet Management","R4000"
"Wolverhampton City Council","http://opendatacommunities.org/id/metropolitan-district-council/wolverhampton","Glaze Auto Parts Limited","IN550930","143.37","Equipment - Purchase","190001374","14/04/14","Fleet Services","Fleet Management","R4000"
"Wolverhampton City Council","http://opendatacommunities.org/id/metropolitan-district-council/wolverhampton","Glaze Auto Parts Limited","IN550936","22.24","Equipment - Purchase","190001375","14/04/14","Fleet Services","Fleet Management","R4000"
"Wolverhampton City Council","http://opendatacommunities.org/id/metropolitan-district-council/wolverhampton","Glaze Auto Parts Limited","IN551055","3.02","Equipment - Purchase","190001376","14/04/14","Fleet Services","Fleet Management","R4000"
"Wolverhampton City Council","http://opendatacommunities.org/id/metropolitan-district-council/wolverhampton","Greenhous Commercials Limited","13241962","214.62","Equipment - Purchase","190001348","14/04/14","Fleet Services","Fleet Management","R4000"
"Wolverhampton City Council","http://opendatacommunities.org/id/metropolitan-district-council/wolverhampton","Greenhous Commercials Limited","13241975","55.99","Equipment - Purchase","190001349","14/04/14","Fleet Services","Fleet Management","R4000"
"Wolverhampton City Council","http://opendatacommunities.org/id/metropolitan-district-council/wolverhampton","Greenhous Commercials Limited","13241975","78.03","Equipment - Purchase","190001349","14/04/14","Fleet Services","Fleet Management","R4000"
"Wolverhampton City Council","http://opendatacommunities.org/id/metropolitan-district-council/wolverhampton","Greenhous Commercials Limited","13242290","78.00","Equipment - Purchase","190001350","14/04/14","Fleet Services","Fleet Management","R4000"
"Wolverhampton City Council","http://opendatacommunities.org/id/metropolitan-district-council/wolverhampton","Greenhous Commercials Limited","13242290","29.50","Equipment - Purchase","190001350","14/04/14","Fleet Services","Fleet Management","R4000"
"Wolverhampton City Council","http://opendatacommunities.org/id/metropolitan-district-council/wolverhampton","Greenhous Commercials Limited","13242515","43.35","Equipment - Purchase","190001351","14/04/14","Fleet Services","Fleet Management","R4000"
"Wolverhampton City Council","http://opendatacommunities.org/id/metropolitan-district-council/wolverhampton","Greenhous Commercials Limited","13237619","44.00","Equipment - Purchase","190001243","14/04/14","Fleet Services","Fleet Management","R4000"
"Wolverhampton City Council","http://opendatacommunities.org/id/metropolitan-district-council/wolverhampton","Greenhous Commercials Limited","13244202","34.95","Equipment - Purchase","190001244","14/04/14","Fleet Services","Fleet Management","R4000"
"Wolverhampton City Council","http://opendatacommunities.org/id/metropolitan-district-council/wolverhampton","Greenhous Commercials Limited","13244202","51.00","Equipment - Purchase","190001244","14/04/14","Fleet Services","Fleet Management","R4000"
"Wolverhampton City Council","http://opendatacommunities.org/id/metropolitan-district-council/wolverhampton","Greenhous Commercials Limited","13244202","5.30","Equipment - Purchase","190001244","14/04/14","Fleet Services","Fleet Management","R4000"
"Wolverhampton City Council","http://opendatacommunities.org/id/metropolitan-district-council/wolverhampton","Greenhous Commercials Limited","13244202","29.00","Equipment - Purchase","190001244","14/04/14","Fleet Services","Fleet Management","R4000"
"Wolverhampton City Council","http://opendatacommunities.org/id/metropolitan-district-council/wolverhampton","Greenhous Commercials Limited","13244513","34.95","Equipment - Purchase","190001245","14/04/14","Fleet Services","Fleet Management","R4000"
"Wolverhampton City Council","http://opendatacommunities.org/id/metropolitan-district-council/wolverhampton","Greenhous Commercials Limited","13244543","4.24","Equipment - Purchase","190001246","14/04/14","Fleet Services","Fleet Management","R4000"
"Wolverhampton City Council","http://opendatacommunities.org/id/metropolitan-district-council/wolverhampton","Greenhous Commercials Limited","13244543","51.00","Equipment - Purchase","190001246","14/04/14","Fleet Services","Fleet Management","R4000"
"Wolverhampton City Council","http://opendatacommunities.org/id/metropolitan-district-council/wolverhampton","Greenhous Commercials Limited","13608813","50.00","Services - Professional Fees","190001251","14/04/14","Fleet Services","Fleet Management","R4400"
"Wolverhampton City Council","http://opendatacommunities.org/id/metropolitan-district-council/wolverhampton","Greenhous Commercials Limited","13608897","488.29","Services - Professional Fees","190001252","14/04/14","Fleet Services","Fleet Management","R4400"
"Wolverhampton City Council","http://opendatacommunities.org/id/metropolitan-district-council/wolverhampton","Greenhous Commercials Limited","13244595","29.00","Equipment - Purchase","190001247","14/04/14","Fleet Services","Fleet Management","R4000"
"Wolverhampton City Council","http://opendatacommunities.org/id/metropolitan-district-council/wolverhampton","Greenhous Commercials Limited","13244831","73.92","Equipment - Purchase","190001248","14/04/14","Fleet Services","Fleet Management","R4000"
"Wolverhampton City Council","http://opendatacommunities.org/id/metropolitan-district-council/wolverhampton","Greenhous Commercials Limited","1300360","-60.82","Equipment - Purchase","190001240","14/04/14","Fleet Services","Fleet Management","R4000"
"Wolverhampton City Council","http://opendatacommunities.org/id/metropolitan-district-council/wolverhampton","Greenhous Commercials Limited","13244999","188.42","Equipment - Purchase","190001249","14/04/14","Fleet Services","Fleet Management","R4000"
"Wolverhampton City Council","http://opendatacommunities.org/id/metropolitan-district-council/wolverhampton","Greenhous Commercials Limited","13608607","45.00","Services - Professional Fees","190001415","14/04/14","Fleet Services","Fleet Management","R4400"
"Wolverhampton City Council","http://opendatacommunities.org/id/metropolitan-district-council/wolverhampton","Greenhous Commercials Limited","13608607","15.00","Services - Professional Fees","190001415","14/04/14","Fleet Services","Fleet Management","R4400"
"Wolverhampton City Council","http://opendatacommunities.org/id/metropolitan-district-council/wolverhampton","Greenhous Commercials Limited","13608502","45.00","Services - Professional Fees","190001414","14/04/14","Fleet Services","Fleet Management","R4400"
"Wolverhampton City Council","http://opendatacommunities.org/id/metropolitan-district-council/wolverhampton","Greenhous Commercials Limited","13608502","15.00","Services - Professional Fees","190001414","14/04/14","Fleet Services","Fleet Management","R4400"
"Wolverhampton City Council","http://opendatacommunities.org/id/metropolitan-district-council/wolverhampton","Greenhous Commercials Limited","13609083","54.00","Services - Professional Fees","190001297","14/04/14","Fleet Services","Fleet Management","R4400"
"Wolverhampton City Council","http://opendatacommunities.org/id/metropolitan-district-council/wolverhampton","Greenhous Commercials Limited","13609083","15.00","Services - Professional Fees","190001297","14/04/14","Fleet Services","Fleet Management","R4400"
"Wolverhampton City Council","http://opendatacommunities.org/id/metropolitan-district-council/wolverhampton","Greenhous Commercials Limited","13609083","45.00","Services - Professional Fees","190001297","14/04/14","Fleet Services","Fleet Management","R4400"
"Wolverhampton City Council","http://opendatacommunities.org/id/metropolitan-district-council/wolverhampton","Greenhous Commercials Limited","13243537","2.62","Equipment - Purchase","190001413","14/04/14","Fleet Services","Fleet Management","R4000"
"Wolverhampton City Council","http://opendatacommunities.org/id/metropolitan-district-council/wolverhampton","Greenhous Commercials Limited","13608502","40.00","Services - Professional Fees","190001414","14/04/14","Fleet Services","Fleet Management","R4400"
"Wolverhampton City Council","http://opendatacommunities.org/id/metropolitan-district-council/wolverhampton","Greenhous Commercials Limited","132423228","25.12","Equipment - Purchase","190001383","14/04/14","Fleet Services","Fleet Management","R4000"
"Wolverhampton City Council","http://opendatacommunities.org/id/metropolitan-district-council/wolverhampton","Greenhous Commercials Limited","13242832","123.74","Equipment - Purchase","190001384","14/04/14","Fleet Services","Fleet Management","R4000"
"Wolverhampton City Council","http://opendatacommunities.org/id/metropolitan-district-council/wolverhampton","Greenhous Commercials Limited","13243148","73.92","Equipment - Purchase","190001385","14/04/14","Fleet Services","Fleet Management","R4000"
"Wolverhampton City Council","http://opendatacommunities.org/id/metropolitan-district-council/wolverhampton","Greenhous Commercials Limited","13243295","11.69","Equipment - Purchase","190001386","14/04/14","Fleet Services","Fleet Management","R4000"
"Wolverhampton City Council","http://opendatacommunities.org/id/metropolitan-district-council/wolverhampton","Greenhous Commercials Limited","13608327","50.00","Services - Professional Fees","190001387","14/04/14","Fleet Services","Fleet Management","R4400"
"Wolverhampton City Council","http://opendatacommunities.org/id/metropolitan-district-council/wolverhampton","Greenhous Commercials Limited","13608440","50.00","Services - Professional Fees","190001388","14/04/14","Fleet Services","Fleet Management","R4400"
"Wolverhampton City Council","http://opendatacommunities.org/id/metropolitan-district-council/wolverhampton","Guest Motors Limited","13003709","17.73","Equipment - Purchase","190001241","14/04/14","Fleet Services","Fleet Management","R4000"
"Wolverhampton City Council","http://opendatacommunities.org/id/metropolitan-district-council/wolverhampton","Guest Motors Limited","13003486","72.89","Equipment - Purchase","190001343","14/04/14","Fleet Services","Fleet Management","R4000"
"Wolverhampton City Council","http://opendatacommunities.org/id/metropolitan-district-council/wolverhampton","Guest Motors Limited","13003486","3.29","Equipment - Purchase","190001343","14/04/14","Fleet Services","Fleet Management","R4000"
"Wolverhampton City Council","http://opendatacommunities.org/id/metropolitan-district-council/wolverhampton","Guest Motors Limited","13501486","419.70","Services - Professional Fees","190001250","14/04/14","Fleet Services","Fleet Management","R4400"
"Wolverhampton City Council","http://opendatacommunities.org/id/metropolitan-district-council/wolverhampton","Guest Motors Limited","13003715","22.53","Equipment - Purchase","190001242","14/04/14","Fleet Services","Fleet Management","R4000"
"Wolverhampton City Council","http://opendatacommunities.org/id/metropolitan-district-council/wolverhampton","Guest Motors Limited","13003488","17.73","Equipment - Purchase","190001344","14/04/14","Fleet Services","Fleet Management","R4000"
"Wolverhampton City Council","http://opendatacommunities.org/id/metropolitan-district-council/wolverhampton","Guest Motors Limited","13003488","12.39","Equipment - Purchase","190001344","14/04/14","Fleet Services","Fleet Management","R4000"
"Wolverhampton City Council","http://opendatacommunities.org/id/metropolitan-district-council/wolverhampton","Guest Motors Limited","13003500","103.18","Equipment - Purchase","190001345","14/04/14","Fleet Services","Fleet Management","R4000"
"Wolverhampton City Council","http://opendatacommunities.org/id/metropolitan-district-council/wolverhampton","Guest Motors Limited","13003522","11.20","Equipment - Purchase","190001346","14/04/14","Fleet Services","Fleet Management","R4000"
"Wolverhampton City Council","http://opendatacommunities.org/id/metropolitan-district-council/wolverhampton","Guest Motors Limited","13003529","123.90","Equipment - Purchase","190001347","14/04/14","Fleet Services","Fleet Management","R4000"
"Wolverhampton City Council","http://opendatacommunities.org/id/metropolitan-district-council/wolverhampton","Guest Motors Limited","13003709","12.39","Equipment - Purchase","190001241","14/04/14","Fleet Services","Fleet Management","R4000"
"Wolverhampton City Council","http://opendatacommunities.org/id/metropolitan-district-council/wolverhampton","Guest Motors Limited","1300244","-602.90","Equipment - Purchase","190001290","14/04/14","Fleet Services","Fleet Management","R4000"
"Wolverhampton City Council","http://opendatacommunities.org/id/metropolitan-district-council/wolverhampton","Guest Motors Limited","13003063","602.90","Equipment - Purchase","190001292","14/04/14","Fleet Services","Fleet Management","R4000"
"Wolverhampton City Council","http://opendatacommunities.org/id/metropolitan-district-council/wolverhampton","Guest Motors Limited","13003119","602.90","Equipment - Purchase","190001293","14/04/14","Fleet Services","Fleet Management","R4000"
"Wolverhampton City Council","http://opendatacommunities.org/id/metropolitan-district-council/wolverhampton","Guest Motors Limited","13003658","17.73","Equipment - Purchase","190001382","14/04/14","Fleet Services","Fleet Management","R4000"
"Wolverhampton City Council","http://opendatacommunities.org/id/metropolitan-district-council/wolverhampton","Guest Motors Limited","13003658","12.39","Equipment - Purchase","190001382","14/04/14","Fleet Services","Fleet Management","R4000"
"Wolverhampton City Council","http://opendatacommunities.org/id/metropolitan-district-council/wolverhampton","Guest Motors Limited","13003325","25.20","Equipment - Purchase","190001411","14/04/14","Fleet Services","Fleet Management","R4000"
"Wolverhampton City Council","http://opendatacommunities.org/id/metropolitan-district-council/wolverhampton","Guest Motors Limited","13003347","80.09","Equipment - Purchase","190001412","14/04/14","Fleet Services","Fleet Management","R4000"
"Wolverhampton City Council","http://opendatacommunities.org/id/metropolitan-district-council/wolverhampton","Guest Motors Limited","1300245","-602.90","Equipment - Purchase","190001291","14/04/14","Fleet Services","Fleet Management","R4000"
"Wolverhampton City Council","http://opendatacommunities.org/id/metropolitan-district-council/wolverhampton","Guest Motors Limited","1300227","-25.20","Equipment - Purchase","190001410","14/04/14","Fleet Services","Fleet Management","R4000"
"Wolverhampton City Council","http://opendatacommunities.org/id/metropolitan-district-council/wolverhampton","Gunn Jcb Limited","4140671","91.61","Equipment - Purchase","190001259","14/04/14","Fleet Services","Fleet Management","R4000"
"Wolverhampton City Council","http://opendatacommunities.org/id/metropolitan-district-council/wolverhampton","Gunn Jcb Limited","4140671","65.83","Equipment - Purchase","190001259","14/04/14","Fleet Services","Fleet Management","R4000"
"Wolverhampton City Council","http://opendatacommunities.org/id/metropolitan-district-council/wolverhampton","Gunn Jcb Limited","4140621","57.03","Equipment - Purchase","190001258","14/04/14","Fleet Services","Fleet Management","R4000"
"Wolverhampton City Council","http://opendatacommunities.org/id/metropolitan-district-council/wolverhampton","Hyrodec (UK) Limited T/A Oss Group","OP/1004157","365.00","Cleaning Supplies and Materials","190001287","14/04/14","Fleet Services","Fleet Management","R2705"
"Wolverhampton City Council","http://opendatacommunities.org/id/metropolitan-district-council/wolverhampton","Imagesound PLC","PIN136689","684.00","Equipment - Purchase","130000169","14/04/14","Markets","Wolverhampton Indoor and Open Market","R4000"
"Wolverhampton City Council","http://opendatacommunities.org/id/metropolitan-district-council/wolverhampton","Interwaste Municipal Limitedc/O Fleet Ca","12920","68.50","Equipment - Purchase","190001342","14/04/14","Fleet Services","Fleet Management","R4000"
"Wolverhampton City Council","http://opendatacommunities.org/id/metropolitan-district-council/wolverhampton","Interwaste Municipal Limitedc/O Fleet Ca","13009","76.40","Equipment - Purchase","190001294","14/04/14","Fleet Services","Fleet Management","R4000"
"Wolverhampton City Council","http://opendatacommunities.org/id/metropolitan-district-council/wolverhampton","Interwaste Municipal Limitedc/O Fleet Ca","13025","76.40","Equipment - Purchase","190001295","14/04/14","Fleet Services","Fleet Management","R4000"
"Wolverhampton City Council","http://opendatacommunities.org/id/metropolitan-district-council/wolverhampton","Interwaste Municipal Limitedc/O Fleet Ca","13026","237.00","Equipment - Purchase","190001296","14/04/14","Fleet Services","Fleet Management","R4000"
"Wolverhampton City Council","http://opendatacommunities.org/id/metropolitan-district-council/wolverhampton","Interwaste Municipal Limitedc/O Fleet Ca","13026","49.00","Equipment - Purchase","190001296","14/04/14","Fleet Services","Fleet Management","R4000"
"Wolverhampton City Council","http://opendatacommunities.org/id/metropolitan-district-council/wolverhampton","Jackdaw (Tools) Limited","JV238906","42.90","Equipment - Purchase","190001337","14/04/14","Fleet Services","Fleet Management","R4000"
"Wolverhampton City Council","http://opendatacommunities.org/id/metropolitan-district-council/wolverhampton","Jackdaw (Tools) Limited","JV237099","6.42","Equipment - Purchase","190001377","14/04/14","Fleet Services","Fleet Management","R4000"
"Wolverhampton City Council","http://opendatacommunities.org/id/metropolitan-district-council/wolverhampton","Jackdaw (Tools) Limited","JV237099","4.51","Equipment - Purchase","190001377","14/04/14","Fleet Services","Fleet Management","R4000"
"Wolverhampton City Council","http://opendatacommunities.org/id/metropolitan-district-council/wolverhampton","Jackdaw (Tools) Limited","JV237099","5.04","Equipment - Purchase","190001377","14/04/14","Fleet Services","Fleet Management","R4000"
"Wolverhampton City Council","http://opendatacommunities.org/id/metropolitan-district-council/wolverhampton","James Lister & Sons Limited","240/02347359","30.00","Equipment - Purchase","190001308","14/04/14","Fleet Services","Fleet Management","R4000"
"Wolverhampton City Council","http://opendatacommunities.org/id/metropolitan-district-council/wolverhampton","James Lister & Sons Limited","240/02347358","63.02","Equipment - Purchase","190001307","14/04/14","Fleet Services","Fleet Management","R4000"
"Wolverhampton City Council","http://opendatacommunities.org/id/metropolitan-district-council/wolverhampton","James Lister & Sons Limited","240/02347357","97.50","Equipment - Purchase","190001306","14/04/14","Fleet Services","Fleet Management","R4000"
"Wolverhampton City Council","http://opendatacommunities.org/id/metropolitan-district-council/wolverhampton","James Lister & Sons Limited","240/02347360","151.97","Equipment - Purchase","190001309","14/04/14","Fleet Services","Fleet Management","R4000"
"Wolverhampton City Council","http://opendatacommunities.org/id/metropolitan-district-council/wolverhampton","James Lister & Sons Limited","240/02343173","137.06","Equipment - Purchase","190001391","14/04/14","Fleet Services","Fleet Management","R4000"
"Wolverhampton City Council","http://opendatacommunities.org/id/metropolitan-district-council/wolverhampton","James Lister & Sons Limited","240/02343174","180.00","Equipment - Purchase","190001392","14/04/14","Fleet Services","Passenger Transport - General","R4000"
"Wolverhampton City Council","http://opendatacommunities.org/id/metropolitan-district-council/wolverhampton","James Lister & Sons Limited","240/02343175","67.67","Equipment - Purchase","190001393","14/04/14","Fleet Services","Fleet Management","R4000"
"Wolverhampton City Council","http://opendatacommunities.org/id/metropolitan-district-council/wolverhampton","James Lister & Sons Limited","240/02347361","295.00","Equipment - Purchase","190001310","14/04/14","Fleet Services","Fleet Management","R4000"
"Wolverhampton City Council","http://opendatacommunities.org/id/metropolitan-district-council/wolverhampton","Johnston Sweepers Limited","61129565","61.78","Equipment - Purchase","190001358","14/04/14","Fleet Services","Fleet Management","R4000"
"Wolverhampton City Council","http://opendatacommunities.org/id/metropolitan-district-council/wolverhampton","Johnston Sweepers Limited","61128862","79.49","Equipment - Purchase","190001398","14/04/14","Fleet Services","Fleet Management","R4000"
"Wolverhampton City Council","http://opendatacommunities.org/id/metropolitan-district-council/wolverhampton","Jones Springs (Eng)Limited","9726","130.00","Equipment - Purchase","190001369","14/04/14","Fleet Services","Fleet Management","R4000"
"Wolverhampton City Council","http://opendatacommunities.org/id/metropolitan-district-council/wolverhampton","Jones Springs (Eng)Limited","9732","48.00","Equipment - Purchase","190001370","14/04/14","Fleet Services","Fleet Management","R4000"
"Wolverhampton City Council","http://opendatacommunities.org/id/metropolitan-district-council/wolverhampton","Jones Springs (Eng)Limited","9732","295.00","Equipment - Purchase","190001370","14/04/14","Fleet Services","Fleet Management","R4000"
"Wolverhampton City Council","http://opendatacommunities.org/id/metropolitan-district-council/wolverhampton","Martyn Billings Automotive","15926","287.62","Services - Professional Fees","190001418","14/04/14","Fleet Services","Fleet Management","R4400"
"Wolverhampton City Council","http://opendatacommunities.org/id/metropolitan-district-council/wolverhampton","Martyn Billings Automotive","15926","45.00","Services - Professional Fees","190001418","14/04/14","Fleet Services","Fleet Management","R4400"
"Wolverhampton City Council","http://opendatacommunities.org/id/metropolitan-district-council/wolverhampton","Martyn Billings Automotive","15907","40.00","Services - Professional Fees","190001416","14/04/14","Fleet Services","Fleet Management","R4400"
"Wolverhampton City Council","http://opendatacommunities.org/id/metropolitan-district-council/wolverhampton","Martyn Billings Automotive","15907","119.00","Services - Professional Fees","190001416","14/04/14","Fleet Services","Fleet Management","R4400"
"Wolverhampton City Council","http://opendatacommunities.org/id/metropolitan-district-council/wolverhampton","Martyn Billings Automotive","15910","40.00","Services - Professional Fees","190001417","14/04/14","Fleet Services","Fleet Management","R4400"
"Wolverhampton City Council","http://opendatacommunities.org/id/metropolitan-district-council/wolverhampton","Martyn Billings Automotive","15910","94.83","Services - Professional Fees","190001417","14/04/14","Fleet Services","Fleet Management","R4400"
"Wolverhampton City Council","http://opendatacommunities.org/id/metropolitan-district-council/wolverhampton","Martyn Billings Automotive","15958","89.13","Services - Professional Fees","190001300","14/04/14","Fleet Services","Fleet Management","R4400"
"Wolverhampton City Council","http://opendatacommunities.org/id/metropolitan-district-council/wolverhampton","Martyn Billings Automotive","15958","40.00","Services - Professional Fees","190001300","14/04/14","Fleet Services","Fleet Management","R4400"
"Wolverhampton City Council","http://opendatacommunities.org/id/metropolitan-district-council/wolverhampton","Midlands Truck & Van Limited","88353290","3.92","Equipment - Purchase","190001317","14/04/14","Fleet Services","Fleet Management","R4000"
"Wolverhampton City Council","http://opendatacommunities.org/id/metropolitan-district-council/wolverhampton","Midlands Truck & Van Limited","88353290","3.26","Equipment - Purchase","190001317","14/04/14","Fleet Services","Fleet Management","R4000"
"Wolverhampton City Council","http://opendatacommunities.org/id/metropolitan-district-council/wolverhampton","Midlands Truck & Van Limited","88353312","53.40","Equipment - Purchase","190001318","14/04/14","Fleet Services","Fleet Management","R4000"
"Wolverhampton City Council","http://opendatacommunities.org/id/metropolitan-district-council/wolverhampton","Midlands Truck & Van Limited","88352438","1.70","Equipment - Purchase","190001366","14/04/14","Fleet Services","Fleet Management","R4000"
"Wolverhampton City Council","http://opendatacommunities.org/id/metropolitan-district-council/wolverhampton","Midlands Truck & Van Limited","88352511","19.60","Equipment - Purchase","190001367","14/04/14","Fleet Services","Fleet Management","R4000"
"Wolverhampton City Council","http://opendatacommunities.org/id/metropolitan-district-council/wolverhampton","Midlands Truck & Van Limited","88353375","3.00","Equipment - Purchase","190001320","14/04/14","Fleet Services","Fleet Management","R4000"
"Wolverhampton City Council","http://opendatacommunities.org/id/metropolitan-district-council/wolverhampton","Midlands Truck & Van Limited","88353345","22.40","Equipment - Purchase","190001319","14/04/14","Fleet Services","Fleet Management","R4000"
"Wolverhampton City Council","http://opendatacommunities.org/id/metropolitan-district-council/wolverhampton","Midlands Truck & Van Limited","83535165","82.50","Services - Professional Fees","190001266","14/04/14","Fleet Services","Fleet Management","R4400"
"Wolverhampton City Council","http://opendatacommunities.org/id/metropolitan-district-council/wolverhampton","Midlands Truck & Van Limited","88353282","15.60","Equipment - Purchase","190001316","14/04/14","Fleet Services","Fleet Management","R4000"
"Wolverhampton City Council","http://opendatacommunities.org/id/metropolitan-district-council/wolverhampton","Midlands Truck & Van Limited","88353282","1.10","Equipment - Purchase","190001316","14/04/14","Fleet Services","Fleet Management","R4000"
"Wolverhampton City Council","http://opendatacommunities.org/id/metropolitan-district-council/wolverhampton","Midlands Truck & Van Limited","88353282","20.60","Equipment - Purchase","190001316","14/04/14","Fleet Services","Fleet Management","R4000"
"Wolverhampton City Council","http://opendatacommunities.org/id/metropolitan-district-council/wolverhampton","Midlands Truck & Van Limited","88352672","21.75","Equipment - Purchase","190001402","14/04/14","Fleet Services","Fleet Management","R4000"
"Wolverhampton City Council","http://opendatacommunities.org/id/metropolitan-district-council/wolverhampton","Midlands Truck & Van Limited","88352674","12.52","Equipment - Purchase","190001403","14/04/14","Fleet Services","Fleet Management","R4000"
"Wolverhampton City Council","http://opendatacommunities.org/id/metropolitan-district-council/wolverhampton","Midlands Truck & Van Limited","88352674","5.40","Equipment - Purchase","190001403","14/04/14","Fleet Services","Fleet Management","R4000"
"Wolverhampton City Council","http://opendatacommunities.org/id/metropolitan-district-council/wolverhampton","Midlands Truck & Van Limited","88352674","10.00","Equipment - Purchase","190001403","14/04/14","Fleet Services","Fleet Management","R4000"
"Wolverhampton City Council","http://opendatacommunities.org/id/metropolitan-district-council/wolverhampton","Midlands Truck & Van Limited","88352716","3.35","Equipment - Purchase","190001404","14/04/14","Fleet Services","Fleet Management","R4000"
"Wolverhampton City Council","http://opendatacommunities.org/id/metropolitan-district-council/wolverhampton","Midlands Truck & Van Limited","88352980","9.80","Equipment - Purchase","190001423","14/04/14","Fleet Services","Fleet Management","R4000"
"Wolverhampton City Council","http://opendatacommunities.org/id/metropolitan-district-council/wolverhampton","Midlands Truck & Van Limited","88352981","49.10","Equipment - Purchase","190001424","14/04/14","Fleet Services","Fleet Management","R4000"
"Wolverhampton City Council","http://opendatacommunities.org/id/metropolitan-district-council/wolverhampton","Midlands Truck & Van Limited","88353027","9.80","Equipment - Purchase","190001425","14/04/14","Fleet Services","Fleet Management","R4000"
"Wolverhampton City Council","http://opendatacommunities.org/id/metropolitan-district-council/wolverhampton","Arnold Clark Automobiles Ltd t/a M M Factors","920068B","-6.52","Equipment - Purchase","190001268","14/04/14","Fleet Services","Fleet Management","R4000"
"Wolverhampton City Council","http://opendatacommunities.org/id/metropolitan-district-council/wolverhampton","Arnold Clark Automobiles Ltd t/a M M Factors","928625B","25.33","Equipment - Purchase","190001269","14/04/14","Fleet Services","Fleet Management","R4000"
"Wolverhampton City Council","http://opendatacommunities.org/id/metropolitan-district-council/wolverhampton","Arnold Clark Automobiles Ltd t/a M M Factors","918855B","6.52","Equipment - Purchase","190001267","14/04/14","Fleet Services","Fleet Management","R4000"
"Wolverhampton City Council","http://opendatacommunities.org/id/metropolitan-district-council/wolverhampton","Mitchell Diesel Limited","168389","20.79","Equipment - Purchase","190001254","14/04/14","Fleet Services","Fleet Management","R4000"
"Wolverhampton City Council","http://opendatacommunities.org/id/metropolitan-district-council/wolverhampton","Mitchell Diesel Limited","168389","17.04","Equipment - Purchase","190001254","14/04/14","Fleet Services","Fleet Management","R4000"
"Wolverhampton City Council","http://opendatacommunities.org/id/metropolitan-district-council/wolverhampton","Motolek Limited.","46437","46.96","Equipment - Purchase","190001397","14/04/14","Fleet Services","Fleet Management","R4000"
"Wolverhampton City Council","http://opendatacommunities.org/id/metropolitan-district-council/wolverhampton","Motolek Limited.","46410","9.50","Equipment - Purchase","190001396","14/04/14","Fleet Services","Fleet Management","R4000"
"Wolverhampton City Council","http://opendatacommunities.org/id/metropolitan-district-council/wolverhampton","Mvis Limited:Municipal Vehicle Insp.Svs.","2659","43.50","Services - Professional Fees","190001311","14/04/14","Fleet Services","Fleet Management","R4400"
"Wolverhampton City Council","http://opendatacommunities.org/id/metropolitan-district-council/wolverhampton","Mvis Limited:Municipal Vehicle Insp.Svs.","2659","43.50","Services - Professional Fees","190001311","14/04/14","Fleet Services","Fleet Management","R4400"
"Wolverhampton City Council","http://opendatacommunities.org/id/metropolitan-district-council/wolverhampton","Mvis Limited:Municipal Vehicle Insp.Svs.","2659","43.50","Services - Professional Fees","190001311","14/04/14","Fleet Services","Fleet Management","R4400"
"Wolverhampton City Council","http://opendatacommunities.org/id/metropolitan-district-council/wolverhampton","Mvis Limited:Municipal Vehicle Insp.Svs.","2659","43.50","Services - Professional Fees","190001311","14/04/14","Fleet Services","Fleet Management","R4400"
"Wolverhampton City Council","http://opendatacommunities.org/id/metropolitan-district-council/wolverhampton","Oakley�S Limited","136627","54.95","Equipment - Purchase","190001253","14/04/14","Fleet Services","Fleet Management","R4000"
"Wolverhampton City Council","http://opendatacommunities.org/id/metropolitan-district-council/wolverhampton","Oakley�S Limited","136627","32.87","Equipment - Purchase","190001253","14/04/14","Fleet Services","Fleet Management","R4000"
"Wolverhampton City Council","http://opendatacommunities.org/id/metropolitan-district-council/wolverhampton","Oakley�S Limited","136627","9.53","Equipment - Purchase","190001253","14/04/14","Fleet Services","Fleet Management","R4000"
"Wolverhampton City Council","http://opendatacommunities.org/id/metropolitan-district-council/wolverhampton","Oakley�S Limited","136627","37.03","Equipment - Purchase","190001253","14/04/14","Fleet Services","Fleet Management","R4000"
"Wolverhampton City Council","http://opendatacommunities.org/id/metropolitan-district-council/wolverhampton","Oakley�S Limited","136627","18.64","Equipment - Purchase","190001253","14/04/14","Fleet Services","Fleet Management","R4000"
"Wolverhampton City Council","http://opendatacommunities.org/id/metropolitan-district-council/wolverhampton","Oakley�S Limited","136627","4.32","Equipment - Purchase","190001253","14/04/14","Fleet Services","Fleet Management","R4000"
"Wolverhampton City Council","http://opendatacommunities.org/id/metropolitan-district-council/wolverhampton","Oakley�S Limited","136627","22.49","Equipment - Purchase","190001253","14/04/14","Fleet Services","Fleet Management","R4000"
"Wolverhampton City Council","http://opendatacommunities.org/id/metropolitan-district-council/wolverhampton","Oakley�S Limited","136326","40.40","Equipment - Purchase","190001352","14/04/14","Fleet Services","Fleet Management","R4000"
"Wolverhampton City Council","http://opendatacommunities.org/id/metropolitan-district-council/wolverhampton","Oakley�S Limited","136905","392.66","Equipment - Purchase","190001298","14/04/14","Fleet Services","Fleet Management","R4000"
"Wolverhampton City Council","http://opendatacommunities.org/id/metropolitan-district-council/wolverhampton","Oakley�S Limited","136918","37.58","Equipment - Purchase","190001299","14/04/14","Fleet Services","Fleet Management","R4000"
"Wolverhampton City Council","http://opendatacommunities.org/id/metropolitan-district-council/wolverhampton","Oakley�S Limited","136918","37.01","Equipment - Purchase","190001299","14/04/14","Fleet Services","Fleet Management","R4000"
"Wolverhampton City Council","http://opendatacommunities.org/id/metropolitan-district-council/wolverhampton","Oakley�S Limited","136918","12.10","Equipment - Purchase","190001299","14/04/14","Fleet Services","Fleet Management","R4000"
"Wolverhampton City Council","http://opendatacommunities.org/id/metropolitan-district-council/wolverhampton","Optare Group Limited","OP10225834","9.51","Equipment - Purchase","190001338","14/04/14","Fleet Services","Fleet Management","R4000"
"Wolverhampton City Council","http://opendatacommunities.org/id/metropolitan-district-council/wolverhampton","Optare Group Limited","OP10224836","125.00","Equipment - Purchase","190001378","14/04/14","Fleet Services","Fleet Management","R4000"
"Wolverhampton City Council","http://opendatacommunities.org/id/metropolitan-district-council/wolverhampton","Oyster Communications Limited","F106359","60.00","Equipment - Purchase","130000168","14/04/14","Markets","Bilston Market and Licensed Operations","R4000"
"Wolverhampton City Council","http://opendatacommunities.org/id/metropolitan-district-council/wolverhampton","Phs Group PLC","60900531","130.44","Cleaning Supplies and Materials","130000166","14/04/14","Markets","Wolverhampton Indoor and Open Market","R2705"
"Wolverhampton City Council","http://opendatacommunities.org/id/metropolitan-district-council/wolverhampton","Pirtek (Wolverhampton)","WOL105523","16.22","Equipment - Purchase","190001381","14/04/14","Fleet Services","Fleet Management","R4000"
"Wolverhampton City Council","http://opendatacommunities.org/id/metropolitan-district-council/wolverhampton","Pirtek (Wolverhampton)","WOL105628","14.63","Equipment - Purchase","190001289","14/04/14","Fleet Services","Fleet Management","R4000"
"Wolverhampton City Council","http://opendatacommunities.org/id/metropolitan-district-council/wolverhampton","Ppl Public Performance Licences","2338670","2,860.10","Services - General Licences","130000158","14/04/14","Markets","Wolverhampton Indoor and Open Market","R4402"
"Wolverhampton City Council","http://opendatacommunities.org/id/metropolitan-district-council/wolverhampton","Premier Service Limited T/A Premier Grp.","7271","234.00","Equipment - R & M","190001265","14/04/14","Fleet Services","Fleet Management","R4003"
"Wolverhampton City Council","http://opendatacommunities.org/id/metropolitan-district-council/wolverhampton","Quality Body Shop Limited","4657","166.50","Services - Professional Fees","190001260","14/04/14","Fleet Services","Fleet Management","R4400"
"Wolverhampton City Council","http://opendatacommunities.org/id/metropolitan-district-council/wolverhampton","R S Recovery Limited","00-029435","91.25","Services - Professional Fees","190001238","14/04/14","Fleet Services","Fleet Management","R4400"
"Wolverhampton City Council","http://opendatacommunities.org/id/metropolitan-district-council/wolverhampton","R S Recovery Limited","00-029146","110.00","Services - Professional Fees","190001409","14/04/14","Fleet Services","Fleet Management","R4400"
"Wolverhampton City Council","http://opendatacommunities.org/id/metropolitan-district-council/wolverhampton","Severn Trent Water Limited","408071484","1,408.63","Water Charges","130000003","14/04/14","Learning Disability Provider","Support Plus","R2400"
"Wolverhampton City Council","http://opendatacommunities.org/id/metropolitan-district-council/wolverhampton","Smart Car Valeting Services Limited","26698","145.00","Services - Professional Fees","190001312","14/04/14","Fleet Services","Fleet Management","R4400"
"Wolverhampton City Council","http://opendatacommunities.org/id/metropolitan-district-council/wolverhampton","T H White Limited","E61085","67.50","Services - Professional Fees","190001275","14/04/14","Fleet Services","Fleet Management","R4400"
"Wolverhampton City Council","http://opendatacommunities.org/id/metropolitan-district-council/wolverhampton","T H White Limited","E61086","1,155.11","Services - Professional Fees","190001276","14/04/14","Fleet Services","Fleet Management","R4400"
"Wolverhampton City Council","http://opendatacommunities.org/id/metropolitan-district-council/wolverhampton","T H White Limited","E61075","102.08","Equipment - Purchase","190001371","14/04/14","Fleet Services","Fleet Management","R4000"
"Wolverhampton City Council","http://opendatacommunities.org/id/metropolitan-district-council/wolverhampton","T H White Limited","E61075","38.83","Equipment - Purchase","190001371","14/04/14","Fleet Services","Fleet Management","R4000"
"Wolverhampton City Council","http://opendatacommunities.org/id/metropolitan-district-council/wolverhampton","T H White Limited","E61075","49.60","Equipment - Purchase","190001371","14/04/14","Fleet Services","Fleet Management","R4000"
"Wolverhampton City Council","http://opendatacommunities.org/id/metropolitan-district-council/wolverhampton","T H White Limited","E61075","17.21","Equipment - Purchase","190001371","14/04/14","Fleet Services","Fleet Management","R4000"
"Wolverhampton City Council","http://opendatacommunities.org/id/metropolitan-district-council/wolverhampton","Terberg Matec UK Limited","96295148","120.53","Equipment - Purchase","190001321","14/04/14","Fleet Services","Fleet Management","R4000"
"Wolverhampton City Council","http://opendatacommunities.org/id/metropolitan-district-council/wolverhampton","Terberg Matec UK Limited","96295148","62.79","Equipment - Purchase","190001321","14/04/14","Fleet Services","Fleet Management","R4000"
"Wolverhampton City Council","http://opendatacommunities.org/id/metropolitan-district-council/wolverhampton","Terberg Matec UK Limited","96295148","44.74","Equipment - Purchase","190001321","14/04/14","Fleet Services","Fleet Management","R4000"
"Wolverhampton City Council","http://opendatacommunities.org/id/metropolitan-district-council/wolverhampton","Terberg Matec UK Limited","96294562","336.55","Equipment - Purchase","190001368","14/04/14","Fleet Services","Fleet Management","R4000"
"Wolverhampton City Council","http://opendatacommunities.org/id/metropolitan-district-council/wolverhampton","Treka Bus Limited","UMT0003298","96.95","Equipment - Purchase","190001379","14/04/14","Fleet Services","Fleet Management","R4000"
"Wolverhampton City Council","http://opendatacommunities.org/id/metropolitan-district-council/wolverhampton","Treka Bus Limited","UMT0003311","91.71","Equipment - Purchase","190001380","14/04/14","Fleet Services","Fleet Management","R4000"
"Wolverhampton City Council","http://opendatacommunities.org/id/metropolitan-district-council/wolverhampton","Treka Bus Limited","UMT0003317","130.50","Equipment - Purchase","190001427","14/04/14","Fleet Services","Fleet Management","R4000"
"Wolverhampton City Council","http://opendatacommunities.org/id/metropolitan-district-council/wolverhampton","AECOM Infrastructure & Environment UK Ltd","5823944","581.88","Services - Consultants","130000094","14/04/14","Transportation","Bridges & Subways","R4404"
"Wolverhampton City Council","http://opendatacommunities.org/id/metropolitan-district-council/wolverhampton","AECOM Infrastructure & Environment UK Ltd","5809519","13,763.34","Services - General Licences","130000093","14/04/14","Transportation","Bridges & Subways","R4402"
"Wolverhampton City Council","http://opendatacommunities.org/id/metropolitan-district-council/wolverhampton","Wolverhampton Radiators","30943","10.00","Equipment - Purchase","190001395","14/04/14","Fleet Services","Fleet Management","R4000"
"Wolverhampton City Council","http://opendatacommunities.org/id/metropolitan-district-council/wolverhampton","YMCA Wolverhampton","9070","840.00","Client Allowances","130000162","14/04/14","Looked After Children","LAC Transitions Team","R6301"
"Wolverhampton City Council","http://opendatacommunities.org/id/metropolitan-district-council/wolverhampton","A Lawson(Dudley School Of Motoring)","264","75.00","Services - Professional Fees","190001394","14/04/14","Fleet Services","Fleet Management","R4400"
"Wolverhampton City Council","http://opendatacommunities.org/id/metropolitan-district-council/wolverhampton","A.B.Waste Management Ltd","43778","825.00","Refuse Collection","130000099","14/04/14","Highways Maintenance","Patching","R2704"
"Wolverhampton City Council","http://opendatacommunities.org/id/metropolitan-district-council/wolverhampton","Access Tail Lift Services Limited","17454","58.20","Services - Professional Fees","190001561","15/04/14","Fleet Services","Fleet Management","R4400"
"Wolverhampton City Council","http://opendatacommunities.org/id/metropolitan-district-council/wolverhampton","Air Liquide UK Limited","94898394","53.20","Equipment - Purchase","190001576","15/04/14","Fleet Services","Fleet Management","R4000"
"Wolverhampton City Council","http://opendatacommunities.org/id/metropolitan-district-council/wolverhampton","Air Liquide UK Limited","94898394","38.24","Equipment - Purchase","190001576","15/04/14","Fleet Services","Fleet Management","R4000"
"Wolverhampton City Council","http://opendatacommunities.org/id/metropolitan-district-council/wolverhampton","Aldridge Trimming","7486","95.00","Equipment - Purchase","190001572","15/04/14","Fleet Services","Fleet Management","R4000"
"Wolverhampton City Council","http://opendatacommunities.org/id/metropolitan-district-council/wolverhampton","Ashton Engineering Co. Limited","2730","224.50","Equipment - Purchase","190001563","15/04/14","Fleet Services","Fleet Management","R4000"
"Wolverhampton City Council","http://opendatacommunities.org/id/metropolitan-district-council/wolverhampton","Ashton Engineering Co. Limited","2731","169.61","Equipment - Purchase","190001564","15/04/14","Fleet Services","Fleet Management","R4000"
"Wolverhampton City Council","http://opendatacommunities.org/id/metropolitan-district-council/wolverhampton","Ashton Engineering Co. Limited","2734","90.10","Equipment - Purchase","190001567","15/04/14","Fleet Services","Fleet Management","R4000"
"Wolverhampton City Council","http://opendatacommunities.org/id/metropolitan-district-council/wolverhampton","Ashton Engineering Co. Limited","2733","201.00","Equipment - Purchase","190001566","15/04/14","Fleet Services","Fleet Management","R4000"
"Wolverhampton City Council","http://opendatacommunities.org/id/metropolitan-district-council/wolverhampton","Ashton Engineering Co. Limited","2732","206.20","Equipment - Purchase","190001565","15/04/14","Fleet Services","Fleet Management","R4000"
"Wolverhampton City Council","http://opendatacommunities.org/id/metropolitan-district-council/wolverhampton","Barcroft Primary School","P8045520140410","300.00","Grant Payments to Individuals","190001941","15/04/14","Looked After Children","LAC Education Team (LACE)","R6402"
"Wolverhampton City Council","http://opendatacommunities.org/id/metropolitan-district-council/wolverhampton","Barcroft Primary School","P8045520140410","300.00","Grant Payments to Individuals","190001941","15/04/14","Looked After Children","LAC Education Team (LACE)","R6402"
"Wolverhampton City Council","http://opendatacommunities.org/id/metropolitan-district-council/wolverhampton","Belvidere Primary School","P8045520140410","300.00","Grant Payments to Individuals","190001941","15/04/14","Looked After Children","LAC Education Team (LACE)","R6402"
"Wolverhampton City Council","http://opendatacommunities.org/id/metropolitan-district-council/wolverhampton","Blackmarston School","P8045520140410","300.00","Grant Payments to Individuals","190001941","15/04/14","Looked After Children","LAC Education Team (LACE)","R6402"
"Wolverhampton City Council","http://opendatacommunities.org/id/metropolitan-district-council/wolverhampton","British Gas Business","66917854/1","21.67","Electricity","130000149","15/04/14","Markets","Wolverhampton Indoor and Open Market","R2100"
"Wolverhampton City Council","http://opendatacommunities.org/id/metropolitan-district-council/wolverhampton","British Gas Business","66917833/1","21.67","Electricity","130000148","15/04/14","Markets","Wolverhampton Indoor and Open Market","R2100"
"Wolverhampton City Council","http://opendatacommunities.org/id/metropolitan-district-council/wolverhampton","British Gas Business","66917833","43.34","Electricity","130000117","15/04/14","Markets","Wolverhampton Indoor and Open Market","R2100"
"Wolverhampton City Council","http://opendatacommunities.org/id/metropolitan-district-council/wolverhampton","Dennis Eagle Limited","DE10778412","2.12","Equipment - Purchase","190001582","15/04/14","Fleet Services","Fleet Management","R4000"
"Wolverhampton City Council","http://opendatacommunities.org/id/metropolitan-district-council/wolverhampton","Dennis Eagle Limited","242423","176.81","Services - Professional Fees","190001562","15/04/14","Fleet Services","Fleet Management","R4400"
"Wolverhampton City Council","http://opendatacommunities.org/id/metropolitan-district-council/wolverhampton","Dennis Eagle Limited","DE10778082","31.94","Equipment - Purchase","190001580","15/04/14","Fleet Services","Fleet Management","R4000"
"Wolverhampton City Council","http://opendatacommunities.org/id/metropolitan-district-council/wolverhampton","Dennis Eagle Limited","DE10778411","31.94","Equipment - Purchase","190001581","15/04/14","Fleet Services","Fleet Management","R4000"
"Wolverhampton City Council","http://opendatacommunities.org/id/metropolitan-district-council/wolverhampton","Eden Brown Limited","S3124290","537.01","Agency Staff","130000001","15/04/14","Learning Disability Provider","Duke Street Bungalows","R1100"
"Wolverhampton City Council","http://opendatacommunities.org/id/metropolitan-district-council/wolverhampton","Eden Brown Limited","3S124289","101.40","Agency Staff","130000002","15/04/14","Learning Disability Provider","Duke Street Bungalows","R1100"
"Wolverhampton City Council","http://opendatacommunities.org/id/metropolitan-district-council/wolverhampton","Eden Brown Limited","3S124291","96.18","Agency Staff","130000004","15/04/14","Learning Disability Provider","Duke Street Bungalows","R1100"
"Wolverhampton City Council","http://opendatacommunities.org/id/metropolitan-district-council/wolverhampton","Eden Brown Limited","3S124323","512.96","Agency Staff","130000032","15/04/14","Learning Disability Provider","Duke Street Bungalows","R1100"
"Wolverhampton City Council","http://opendatacommunities.org/id/metropolitan-district-council/wolverhampton","Eden Brown Limited","3S124295","124.80","Agency Staff","130000029","15/04/14","Learning Disability Provider","Duke Street Bungalows","R1100"
"Wolverhampton City Council","http://opendatacommunities.org/id/metropolitan-district-council/wolverhampton","Eden Brown Limited","3S124322","101.89","Agency Staff","130000031","15/04/14","Learning Disability Provider","Duke Street Bungalows","R1100"
"Wolverhampton City Council","http://opendatacommunities.org/id/metropolitan-district-council/wolverhampton","Elysian Field Limited","P8064620140410","684.00","Client Allowances","190001942","15/04/14","Looked After Children","LAC Transitions Team","R6301"
"Wolverhampton City Council","http://opendatacommunities.org/id/metropolitan-district-council/wolverhampton","Elysian Field Limited","P8064620140410","684.00","Client Allowances","190001942","15/04/14","Looked After Children","LAC Transitions Team","R6301"
"Wolverhampton City Council","http://opendatacommunities.org/id/metropolitan-district-council/wolverhampton","Elysian Field Limited","P8064620140410","684.00","Client Allowances","190001942","15/04/14","Looked After Children","LAC Transitions Team","R6301"
"Wolverhampton City Council","http://opendatacommunities.org/id/metropolitan-district-council/wolverhampton","Elysian Field Limited","P8064620140410","684.00","Client Allowances","190001942","15/04/14","Looked After Children","LAC Transitions Team","R6301"
"Wolverhampton City Council","http://opendatacommunities.org/id/metropolitan-district-council/wolverhampton","Evans Halshaw Ford","725332","138.45","Equipment - Purchase","190001571","15/04/14","Fleet Services","Fleet Management","R4000"
"Wolverhampton City Council","http://opendatacommunities.org/id/metropolitan-district-council/wolverhampton","Glaze Auto Parts Limited","IN552675","21.14","Equipment - Purchase","190001589","15/04/14","Fleet Services","Fleet Management","R4000"
"Wolverhampton City Council","http://opendatacommunities.org/id/metropolitan-district-council/wolverhampton","Glaze Auto Parts Limited","IN552674","19.64","Equipment - Purchase","190001588","15/04/14","Fleet Services","Fleet Management","R4000"
"Wolverhampton City Council","http://opendatacommunities.org/id/metropolitan-district-council/wolverhampton","Glaze Auto Parts Limited","IN552584","18.28","Equipment - Purchase","190001585","15/04/14","Fleet Services","Fleet Management","R4000"
"Wolverhampton City Council","http://opendatacommunities.org/id/metropolitan-district-council/wolverhampton","Glaze Auto Parts Limited","IN552572","3.97","Equipment - Purchase","190001584","15/04/14","Fleet Services","Fleet Management","R4000"
"Wolverhampton City Council","http://opendatacommunities.org/id/metropolitan-district-council/wolverhampton","Glaze Auto Parts Limited","IN552498","33.18","Equipment - Purchase","190001583","15/04/14","Fleet Services","Fleet Management","R4000"
"Wolverhampton City Council","http://opendatacommunities.org/id/metropolitan-district-council/wolverhampton","Glaze Auto Parts Limited","IN552621","6.06","Equipment - Purchase","190001587","15/04/14","Fleet Services","Fleet Management","R4000"
"Wolverhampton City Council","http://opendatacommunities.org/id/metropolitan-district-council/wolverhampton","Glaze Auto Parts Limited","IN552621","6.66","Equipment - Purchase","190001587","15/04/14","Fleet Services","Fleet Management","R4000"
"Wolverhampton City Council","http://opendatacommunities.org/id/metropolitan-district-council/wolverhampton","Glaze Auto Parts Limited","IN552621","103.13","Equipment - Purchase","190001587","15/04/14","Fleet Services","Fleet Management","R4000"
"Wolverhampton City Council","http://opendatacommunities.org/id/metropolitan-district-council/wolverhampton","Glaze Auto Parts Limited","CR107042","-101.58","Equipment - Purchase","190001579","15/04/14","Fleet Services","Fleet Management","R4000"
"Wolverhampton City Council","http://opendatacommunities.org/id/metropolitan-district-council/wolverhampton","Glaze Auto Parts Limited","IN552716","15.74","Equipment - Purchase","190001590","15/04/14","Fleet Services","Fleet Management","R4000"
"Wolverhampton City Council","http://opendatacommunities.org/id/metropolitan-district-council/wolverhampton","Glaze Auto Parts Limited","IN552607","3.60","Equipment - Purchase","190001586","15/04/14","Fleet Services","Fleet Management","R4000"
"Wolverhampton City Council","http://opendatacommunities.org/id/metropolitan-district-council/wolverhampton","Glaze Auto Parts Limited","IN552607","3.36","Equipment - Purchase","190001586","15/04/14","Fleet Services","Fleet Management","R4000"
"Wolverhampton City Council","http://opendatacommunities.org/id/metropolitan-district-council/wolverhampton","Greenhous Commercials Limited","13609004","15.00","Services - Professional Fees","190001556","15/04/14","Fleet Services","Fleet Management","R4400"
"Wolverhampton City Council","http://opendatacommunities.org/id/metropolitan-district-council/wolverhampton","Greenhous Commercials Limited","13608919","50.00","Services - Professional Fees","190001555","15/04/14","Fleet Services","Fleet Management","R4400"
"Wolverhampton City Council","http://opendatacommunities.org/id/metropolitan-district-council/wolverhampton","Greenhous Commercials Limited","13609342","453.34","Services - Professional Fees","190001557","15/04/14","Fleet Services","Fleet Management","R4400"
"Wolverhampton City Council","http://opendatacommunities.org/id/metropolitan-district-council/wolverhampton","Greenhous Commercials Limited","13609004","54.00","Services - Professional Fees","190001556","15/04/14","Fleet Services","Fleet Management","R4400"
"Wolverhampton City Council","http://opendatacommunities.org/id/metropolitan-district-council/wolverhampton","Greenhous Commercials Limited","13609004","45.00","Services - Professional Fees","190001556","15/04/14","Fleet Services","Fleet Management","R4400"
"Wolverhampton City Council","http://opendatacommunities.org/id/metropolitan-district-council/wolverhampton","Guest Motors Limited","13003970","173.42","Equipment - Purchase","190001554","15/04/14","Fleet Services","Fleet Management","R4000"
"Wolverhampton City Council","http://opendatacommunities.org/id/metropolitan-district-council/wolverhampton","Guest Motors Limited","13003970","17.05","Equipment - Purchase","190001554","15/04/14","Fleet Services","Fleet Management","R4000"
"Wolverhampton City Council","http://opendatacommunities.org/id/metropolitan-district-council/wolverhampton","Guest Motors Limited","13003970","16.12","Equipment - Purchase","190001554","15/04/14","Fleet Services","Fleet Management","R4000"
"Wolverhampton City Council","http://opendatacommunities.org/id/metropolitan-district-council/wolverhampton","Guest Motors Limited","13003970","17.73","Equipment - Purchase","190001554","15/04/14","Fleet Services","Fleet Management","R4000"
"Wolverhampton City Council","http://opendatacommunities.org/id/metropolitan-district-council/wolverhampton","Guest Motors Limited","13003970","12.39","Equipment - Purchase","190001554","15/04/14","Fleet Services","Fleet Management","R4000"
"Wolverhampton City Council","http://opendatacommunities.org/id/metropolitan-district-council/wolverhampton","Gunn Jcb Limited","4140714","62.43","Equipment - Purchase","190001569","15/04/14","Fleet Services","Fleet Management","R4000"
"Wolverhampton City Council","http://opendatacommunities.org/id/metropolitan-district-council/wolverhampton","Gunn Jcb Limited","4140722","52.74","Equipment - Purchase","190001570","15/04/14","Fleet Services","Fleet Management","R4000"
"Wolverhampton City Council","http://opendatacommunities.org/id/metropolitan-district-council/wolverhampton","Jackdaw (Tools) Limited","JV239421","21.98","Equipment - Purchase","190001591","15/04/14","Fleet Services","Fleet Management","R4000"
"Wolverhampton City Council","http://opendatacommunities.org/id/metropolitan-district-council/wolverhampton","Kyloe House Secure Unit","P80575 04051420140411","-2,359.77","TPP - Residential Care - Long Term","190002342","15/04/14","Looked After Children","Out of City Placements","R5400"
"Wolverhampton City Council","http://opendatacommunities.org/id/metropolitan-district-council/wolverhampton","Kyloe House Secure Unit","P80575 04051420140411","24,384.29","TPP - Residential Care - Long Term","190002342","15/04/14","Looked After Children","Out of City Placements","R5400"
"Wolverhampton City Council","http://opendatacommunities.org/id/metropolitan-district-council/wolverhampton","Martyn Billings Automotive","15975","40.00","Services - Professional Fees","190001559","15/04/14","Fleet Services","Fleet Management","R4400"
"Wolverhampton City Council","http://opendatacommunities.org/id/metropolitan-district-council/wolverhampton","Martyn Billings Automotive","15975","96.50","Services - Professional Fees","190001559","15/04/14","Fleet Services","Fleet Management","R4400"
"Wolverhampton City Council","http://opendatacommunities.org/id/metropolitan-district-council/wolverhampton","Martyn Billings Automotive","15976","40.00","Services - Professional Fees","190001560","15/04/14","Fleet Services","Fleet Management","R4400"
"Wolverhampton City Council","http://opendatacommunities.org/id/metropolitan-district-council/wolverhampton","Martyn Billings Automotive","15976","96.50","Services - Professional Fees","190001560","15/04/14","Fleet Services","Fleet Management","R4400"
"Wolverhampton City Council","http://opendatacommunities.org/id/metropolitan-district-council/wolverhampton","Martyn Billings Automotive","15966","59.55","Services - Professional Fees","190001558","15/04/14","Fleet Services","Fleet Management","R4400"
"Wolverhampton City Council","http://opendatacommunities.org/id/metropolitan-district-council/wolverhampton","Martyn Billings Automotive","15966","96.96","Services - Professional Fees","190001558","15/04/14","Fleet Services","Fleet Management","R4400"
"Wolverhampton City Council","http://opendatacommunities.org/id/metropolitan-district-council/wolverhampton","Midlands Truck & Van Limited","88353555","97.50","Equipment - Purchase","190001575","15/04/14","Fleet Services","Fleet Management","R4000"
"Wolverhampton City Council","http://opendatacommunities.org/id/metropolitan-district-council/wolverhampton","Midlands Truck & Van Limited","88353530","44.80","Equipment - Purchase","190001574","15/04/14","Fleet Services","Fleet Management","R4000"
"Wolverhampton City Council","http://opendatacommunities.org/id/metropolitan-district-council/wolverhampton","Midlands Truck & Van Limited","83535547","90.75","Services - Professional Fees","190001573","15/04/14","Fleet Services","Fleet Management","R4400"
"Wolverhampton City Council","http://opendatacommunities.org/id/metropolitan-district-council/wolverhampton","Orange Plant Limited","35505","76.23","Equipment - Purchase","190001568","15/04/14","Fleet Services","Fleet Management","R4000"
"Wolverhampton City Council","http://opendatacommunities.org/id/metropolitan-district-council/wolverhampton","Orange Plant Limited","35505","13.81","Equipment - Purchase","190001568","15/04/14","Fleet Services","Fleet Management","R4000"
"Wolverhampton City Council","http://opendatacommunities.org/id/metropolitan-district-council/wolverhampton","Ridgeway Court Care Home","P79745 04051420140411","1,564.00","TPP - Residential Care - Long Term","190001967","15/04/14","Older People Assessment & Care Management","OP Care Purchasing (Spot Placements)","R5400"
"Wolverhampton City Council","http://opendatacommunities.org/id/metropolitan-district-council/wolverhampton","Shine Fostering","P80597 04051420140411","3,199.55","TPP - Placement Foster Care Agency","190002353","15/04/14","Looked After Children","Out of City Placements","R5602"
"Wolverhampton City Council","http://opendatacommunities.org/id/metropolitan-district-council/wolverhampton","Shine Fostering","P80597 04051420140411","-325.93","TPP - Placement Foster Care Agency","190002353","15/04/14","Looked After Children","Out of City Placements","R5602"
"Wolverhampton City Council","http://opendatacommunities.org/id/metropolitan-district-council/wolverhampton","Shine Fostering","P80597 04051420140411","3,367.93","TPP - Placement Foster Care Agency","190002353","15/04/14","Looked After Children","Out of City Placements","R5602"
"Wolverhampton City Council","http://opendatacommunities.org/id/metropolitan-district-council/wolverhampton","Shine Fostering","P80597 04051420140411","-309.63","TPP - Placement Foster Care Agency","190002353","15/04/14","Looked After Children","Out of City Placements","R5602"
"Wolverhampton City Council","http://opendatacommunities.org/id/metropolitan-district-council/wolverhampton","Terberg Matec UK Limited","96295317","1,617.38","Services - Professional Fees","190001578","15/04/14","Fleet Services","Fleet Management","R4400"
"Wolverhampton City Council","http://opendatacommunities.org/id/metropolitan-district-council/wolverhampton","Terberg Matec UK Limited","96295316","406.22","Services - Professional Fees","190001577","15/04/14","Fleet Services","Fleet Management","R4400"
"Wolverhampton City Council","http://opendatacommunities.org/id/metropolitan-district-council/wolverhampton","The Grange Residential Home","P79739 04051420140411","1,800.00","TPP - Residential Care - Long Term","190002082","15/04/14","Older People Assessment & Care Management","OP Care Purchasing (Spot Placements)","R5400"
"Wolverhampton City Council","http://opendatacommunities.org/id/metropolitan-district-council/wolverhampton","Wolverhampton Ymca "Badger Court"","P8064620140410","178.66","Client Allowances","190001942","15/04/14","Looked After Children","LAC Transitions Team","R6301"
"Wolverhampton City Council","http://opendatacommunities.org/id/metropolitan-district-council/wolverhampton","Wolverhampton Ymca "Badger Court"","P8064620140410","178.66","Client Allowances","190001942","15/04/14","Looked After Children","LAC Transitions Team","R6301"
"Wolverhampton City Council","http://opendatacommunities.org/id/metropolitan-district-council/wolverhampton","Wolverhampton Ymca "Badger Court"","P8064620140410","178.66","Client Allowances","190001942","15/04/14","Looked After Children","LAC Transitions Team","R6301"
"Wolverhampton City Council","http://opendatacommunities.org/id/metropolitan-district-council/wolverhampton","Alphonsus Serv(Dudley)Limited-Beatricehs","P80843 04051420140415","10,296.00","TPP - Residential Care - Long Term","190002589","16/04/14","Learning Disability Assessment & Care Management","LD Care Purchasing (Spot Placements)","R5400"
"Wolverhampton City Council","http://opendatacommunities.org/id/metropolitan-district-council/wolverhampton","Flying Penguin Enterprises","173215","70.36","Vehicle Maintenance - Spare Parts","130002775","16/04/14","Fleet Services","Fleet Management","R3009"
"Wolverhampton City Council","http://opendatacommunities.org/id/metropolitan-district-council/wolverhampton","Flying Penguin Enterprises","173188","13.76","Vehicle Maintenance - Spare Parts","130002773","16/04/14","Fleet Services","Fleet Management","R3009"
"Wolverhampton City Council","http://opendatacommunities.org/id/metropolitan-district-council/wolverhampton","Flying Penguin Enterprises","173180","11.00","Vehicle Maintenance - Spare Parts","130002772","16/04/14","Fleet Services","Fleet Management","R3009"
"Wolverhampton City Council","http://opendatacommunities.org/id/metropolitan-district-council/wolverhampton","Flying Penguin Enterprises","173189","93.48","Vehicle Maintenance - Spare Parts","130002774","16/04/14","Fleet Services","Fleet Management","R3009"
"Wolverhampton City Council","http://opendatacommunities.org/id/metropolitan-district-council/wolverhampton","Askews & Holts Library Services Limited","4272499","69.91","Books","130045038","17/04/14","Library Services","Global Budgets","R4309"
"Wolverhampton City Council","http://opendatacommunities.org/id/metropolitan-district-council/wolverhampton","Askews & Holts Library Services Limited","4273099","430.32","Books","130045064","17/04/14","Library Services","Global Budgets","R4309"
"Wolverhampton City Council","http://opendatacommunities.org/id/metropolitan-district-council/wolverhampton","Af Blakemore/Blakemore Foodservice","3783036","72.00","Provisions (Not for resale)","130000189","23/04/14","Leisure Services","WV Active Catering","R4101"
"Wolverhampton City Council","http://opendatacommunities.org/id/metropolitan-district-council/wolverhampton","Af Blakemore/Blakemore Foodservice","4112353","15.24","Provisions (Not for resale)","130000329","23/04/14","Leisure Services","WV Active Catering","R4101"
"Wolverhampton City Council","http://opendatacommunities.org/id/metropolitan-district-council/wolverhampton","Af Blakemore/Blakemore Foodservice","4107038","33.76","Provisions (Not for resale)","130000330","23/04/14","Older People Provider Services","Merry Hill House","R4101"
"Wolverhampton City Council","http://opendatacommunities.org/id/metropolitan-district-council/wolverhampton","Af Blakemore/Blakemore Foodservice","4146757","36.84","Provisions (Not for resale)","130000332","23/04/14","Older People Provider Services","Merry Hill House","R4101"
"Wolverhampton City Council","http://opendatacommunities.org/id/metropolitan-district-council/wolverhampton","Af Blakemore/Blakemore Foodservice","4129112","68.43","Provisions (Not for resale)","130000350","23/04/14","Older People Provider Services","Merry Hill House","R4101"
"Wolverhampton City Council","http://opendatacommunities.org/id/metropolitan-district-council/wolverhampton","Af Blakemore/Blakemore Foodservice","4140978","379.49","Provisions (Not for resale)","130000763","23/04/14","Older People Provider Services","Merry Hill House","R4101"
"Wolverhampton City Council","http://opendatacommunities.org/id/metropolitan-district-council/wolverhampton","Af Blakemore/Blakemore Foodservice","4140978","179.54","Provisions (Not for resale)","130000763","23/04/14","Older People Provider Services","Merry Hill House","R4101"
"Wolverhampton City Council","http://opendatacommunities.org/id/metropolitan-district-council/wolverhampton","Af Blakemore/Blakemore Foodservice","4000391","536.98","Provisions (Not for resale)","130000767","23/04/14","Older People Provider Services","Nelson Mandela House","R4101"
"Wolverhampton City Council","http://opendatacommunities.org/id/metropolitan-district-council/wolverhampton","Af Blakemore/Blakemore Foodservice","4000391","156.63","Provisions (Not for resale)","130000767","23/04/14","Older People Provider Services","Nelson Mandela House","R4101"
"Wolverhampton City Council","http://opendatacommunities.org/id/metropolitan-district-council/wolverhampton","Af Blakemore/Blakemore Foodservice","3874357","502.19","Provisions (Not for resale)","130000765","23/04/14","Older People Provider Services","Nelson Mandela House","R4101"
"Wolverhampton City Council","http://opendatacommunities.org/id/metropolitan-district-council/wolverhampton","Af Blakemore/Blakemore Foodservice","3874357","162.01","Provisions (Not for resale)","130000765","23/04/14","Older People Provider Services","Nelson Mandela House","R4101"
"Wolverhampton City Council","http://opendatacommunities.org/id/metropolitan-district-council/wolverhampton","Af Blakemore/Blakemore Foodservice","4141303","5.96","Provisions (Not for resale)","130000347","23/04/14","Older People Provider Services","Merry Hill House","R4101"
"Wolverhampton City Council","http://opendatacommunities.org/id/metropolitan-district-council/wolverhampton","Af Blakemore/Blakemore Foodservice","4129112","16.94","Provisions (Not for resale)","130000350","23/04/14","Older People Provider Services","Merry Hill House","R4101"
"Wolverhampton City Council","http://opendatacommunities.org/id/metropolitan-district-council/wolverhampton","Argos Business Solutions Limited","01148600","53.82","Cleaning Supplies and Materials","130000145","23/04/14","Learning Disability Provider","Duke Street Bungalows","R2705"
"Wolverhampton City Council","http://opendatacommunities.org/id/metropolitan-district-council/wolverhampton","Argos Business Solutions Limited","01136490","286.66","Cleaning Supplies and Materials","130000255","23/04/14","Learning Disability Provider","Duke Street Bungalows","R2705"
"Wolverhampton City Council","http://opendatacommunities.org/id/metropolitan-district-council/wolverhampton","Arthur Brett (Catering) Limited","ID658446","4.72","Provisions (Not for resale)","130000279","23/04/14","Contracts","Children Diet and Physical Activity","R4101"
"Wolverhampton City Council","http://opendatacommunities.org/id/metropolitan-district-council/wolverhampton","Arthur Brett (Catering) Limited","ID658446","1.92","Provisions (Not for resale)","130000279","23/04/14","Contracts","Children Diet and Physical Activity","R4101"
"Wolverhampton City Council","http://opendatacommunities.org/id/metropolitan-district-council/wolverhampton","Arthur Brett (Catering) Limited","ID658446","1.09","Provisions (Not for resale)","130000279","23/04/14","Contracts","Children Diet and Physical Activity","R4101"
"Wolverhampton City Council","http://opendatacommunities.org/id/metropolitan-district-council/wolverhampton","Arthur Brett (Catering) Limited","ID658446","6.30","Provisions (Not for resale)","130000279","23/04/14","Contracts","Children Diet and Physical Activity","R4101"
"Wolverhampton City Council","http://opendatacommunities.org/id/metropolitan-district-council/wolverhampton","Arthur Brett (Catering) Limited","ID658446","4.80","Provisions (Not for resale)","130000279","23/04/14","Contracts","Children Diet and Physical Activity","R4101"
"Wolverhampton City Council","http://opendatacommunities.org/id/metropolitan-district-council/wolverhampton","Arthur Brett (Catering) Limited","ID658447","1.92","Provisions (Not for resale)","130000280","23/04/14","Contracts","Children Diet and Physical Activity","R4101"
"Wolverhampton City Council","http://opendatacommunities.org/id/metropolitan-district-council/wolverhampton","Arthur Brett (Catering) Limited","ID658447","1.92","Provisions (Not for resale)","130000280","23/04/14","Contracts","Children Diet and Physical Activity","R4101"
"Wolverhampton City Council","http://opendatacommunities.org/id/metropolitan-district-council/wolverhampton","Arthur Brett (Catering) Limited","ID658447","1.09","Provisions (Not for resale)","130000280","23/04/14","Contracts","Children Diet and Physical Activity","R4101"
"Wolverhampton City Council","http://opendatacommunities.org/id/metropolitan-district-council/wolverhampton","Arthur Brett (Catering) Limited","ID658447","19.96","Provisions (Not for resale)","130000280","23/04/14","Contracts","Children Diet and Physical Activity","R4101"
"Wolverhampton City Council","http://opendatacommunities.org/id/metropolitan-district-council/wolverhampton","Arthur Brett (Catering) Limited","ID658450","13.95","Provisions (Not for resale)","130000281","23/04/14","Contracts","Children Diet and Physical Activity","R4101"
"Wolverhampton City Council","http://opendatacommunities.org/id/metropolitan-district-council/wolverhampton","Arthur Brett (Catering) Limited","ID658466","19.72","Provisions (Not for resale)","130000282","23/04/14","Contracts","Children Diet and Physical Activity","R4101"
"Wolverhampton City Council","http://opendatacommunities.org/id/metropolitan-district-council/wolverhampton","Arthur Brett (Catering) Limited","ID653065","59.21","Provisions (Not for resale)","130000551","23/04/14","Older People Provider Services","Blakenhall Resource Centre","R4101"
"Wolverhampton City Council","http://opendatacommunities.org/id/metropolitan-district-council/wolverhampton","Arthur Brett (Catering) Limited","ID625683","42.35","Provisions (Not for resale)","130000191","23/04/14","Older People Provider Services","Nelson Mandela House","R4101"
"Wolverhampton City Council","http://opendatacommunities.org/id/metropolitan-district-council/wolverhampton","Arthur Brett (Catering) Limited","ID652878","50.14","Provisions (Not for resale)","130000174","23/04/14","Older People Provider Services","Woden Resource Centre","R4101"
"Wolverhampton City Council","http://opendatacommunities.org/id/metropolitan-district-council/wolverhampton","Arthur Brett (Catering) Limited","ID658208","21.82","Provisions (Not for resale)","130000278","23/04/14","Older People Provider Services","Nelson Mandela House","R4101"
"Wolverhampton City Council","http://opendatacommunities.org/id/metropolitan-district-council/wolverhampton","Arthur Brett (Catering) Limited","ID648131","41.11","Provisions (Not for resale)","130000192","23/04/14","Older People Provider Services","Woden Resource Centre","R4101"
"Wolverhampton City Council","http://opendatacommunities.org/id/metropolitan-district-council/wolverhampton","Arthur Brett (Catering) Limited","ID650362","30.71","Provisions (Not for resale)","130000194","23/04/14","Older People Provider Services","Woden Resource Centre","R4101"
"Wolverhampton City Council","http://opendatacommunities.org/id/metropolitan-district-council/wolverhampton","Arthur Brett (Catering) Limited","ID652880","44.80","Provisions (Not for resale)","130000196","23/04/14","Older People Provider Services","Woden Resource Centre","R4101"
"Wolverhampton City Council","http://opendatacommunities.org/id/metropolitan-district-council/wolverhampton","Arthur Brett (Catering) Limited","ID572918","35.85","Provisions (Not for resale)","130000199","23/04/14","Leisure Services","WV Active Catering","R4101"
"Wolverhampton City Council","http://opendatacommunities.org/id/metropolitan-district-council/wolverhampton","Arthur Brett (Catering) Limited","ID558768","27.53","Provisions (Not for resale)","130000200","23/04/14","Older People Provider Services","Warstones Resource Centre","R4101"
"Wolverhampton City Council","http://opendatacommunities.org/id/metropolitan-district-council/wolverhampton","Arthur Brett (Catering) Limited","ID556054","70.29","Provisions (Not for resale)","130000202","23/04/14","Older People Provider Services","Warstones Resource Centre","R4101"
"Wolverhampton City Council","http://opendatacommunities.org/id/metropolitan-district-council/wolverhampton","Arthur Brett (Catering) Limited","ID554892","42.21","Provisions (Not for resale)","130000203","23/04/14","Leisure Services","WV Active Catering","R4101"
"Wolverhampton City Council","http://opendatacommunities.org/id/metropolitan-district-council/wolverhampton","Arthur Brett (Catering) Limited","ID537131","19.59","Provisions (Not for resale)","130000204","23/04/14","Leisure Services","WV Active Catering","R4101"
"Wolverhampton City Council","http://opendatacommunities.org/id/metropolitan-district-council/wolverhampton","Askews & Holts Library Services Limited","4161616","24.15","Books","130000251","23/04/14","Library Services","Global Budgets","R4309"
"Wolverhampton City Council","http://opendatacommunities.org/id/metropolitan-district-council/wolverhampton","Askews & Holts Library Services Limited","4161616","443.08","Books","130000251","23/04/14","Library Services","Global Budgets","R4309"
"Wolverhampton City Council","http://opendatacommunities.org/id/metropolitan-district-council/wolverhampton","Askews & Holts Library Services Limited","4156600","17.16","Books","130000252","23/04/14","Library Services","Global Budgets","R4309"
"Wolverhampton City Council","http://opendatacommunities.org/id/metropolitan-district-council/wolverhampton","Askews & Holts Library Services Limited","4176515","1.30","Books","130000250","23/04/14","Library Services","Global Budgets","R4309"
"Wolverhampton City Council","http://opendatacommunities.org/id/metropolitan-district-council/wolverhampton","Askews & Holts Library Services Limited","4176515","939.12","Books","130000250","23/04/14","Library Services","Global Budgets","R4309"
"Wolverhampton City Council","http://opendatacommunities.org/id/metropolitan-district-council/wolverhampton","Askews & Holts Library Services Limited","4142303","15.25","Books","130000254","23/04/14","Library Services","Global Budgets","R4309"
"Wolverhampton City Council","http://opendatacommunities.org/id/metropolitan-district-council/wolverhampton","Askews & Holts Library Services Limited","4142303","538.93","Books","130000254","23/04/14","Library Services","Global Budgets","R4309"
"Wolverhampton City Council","http://opendatacommunities.org/id/metropolitan-district-council/wolverhampton","Asles (Tool Hire & Sales) Limited","0100/02338428","668.40","Cleaning Supplies and Materials","130000309","23/04/14","Catering","Education Catering - General Overheads","R2705"
"Wolverhampton City Council","http://opendatacommunities.org/id/metropolitan-district-council/wolverhampton","Associated  Radio Taxi�s","01192","83.60","TPP - Payments to voluntary groups","130000113","23/04/14","Children With Disabilities","Childrens with Disabilities Team","R5200"
"Wolverhampton City Council","http://opendatacommunities.org/id/metropolitan-district-council/wolverhampton","Associated  Radio Taxi�s","01013","7.10","Public Transport","130000115","23/04/14","Children in Need & Child Protection","North East Locality Service","R3300"
"Wolverhampton City Council","http://opendatacommunities.org/id/metropolitan-district-council/wolverhampton","Aurora Graphics & Displays Limited","23800","92.00","Signage and Labels","130000164","23/04/14","Communications & Marketing","Communications & Marketing - General","R4009"
"Wolverhampton City Council","http://opendatacommunities.org/id/metropolitan-district-council/wolverhampton","Aurora Graphics & Displays Limited","24087","62.50","Signage and Labels","130000163","23/04/14","Communications & Marketing","Communications & Marketing - General","R4009"
"Wolverhampton City Council","http://opendatacommunities.org/id/metropolitan-district-council/wolverhampton","Badenoch & Clark Recruit. Specialist","4494115","890.63","Agency Staff","130000245","23/04/14","Strategic Financial Services","Strategic Financial Services","R1100"
"Wolverhampton City Council","http://opendatacommunities.org/id/metropolitan-district-council/wolverhampton","Badenoch & Clark Recruit. Specialist","4499386","1,381.91","Agency Staff","130000075","23/04/14","Strategic Financial Services","Strategic Financial Services","R1100"
"Wolverhampton City Council","http://opendatacommunities.org/id/metropolitan-district-council/wolverhampton","Badenoch & Clark Recruit. Specialist","4499390","16.28","Agency Staff","130000076","23/04/14","Strategic Financial Services","Strategic Financial Services","R1100"
"Wolverhampton City Council","http://opendatacommunities.org/id/metropolitan-district-council/wolverhampton","Badenoch & Clark Recruit. Specialist","4494114","890.63","Agency Staff","130000088","23/04/14","Strategic Financial Services","Strategic Financial Services","R1100"
"Wolverhampton City Council","http://opendatacommunities.org/id/metropolitan-district-council/wolverhampton","Badenoch & Clark Recruit. Specialist","4500097","760.05","Agency Staff","130000089","23/04/14","Strategic Financial Services","Strategic Financial Services","R1100"
"Wolverhampton City Council","http://opendatacommunities.org/id/metropolitan-district-council/wolverhampton","Badenoch & Clark Recruit. Specialist","4500048","2,058.80","Agency Staff","130000077","23/04/14","Strategic Financial Services","Strategic Financial Services","R1100"
"Wolverhampton City Council","http://opendatacommunities.org/id/metropolitan-district-council/wolverhampton","Badenoch & Clark Recruit. Specialist","4500051","2,058.80","Agency Staff","130000078","23/04/14","Strategic Financial Services","Strategic Financial Services","R1100"
"Wolverhampton City Council","http://opendatacommunities.org/id/metropolitan-district-council/wolverhampton","Badenoch & Clark Recruit. Specialist","4500094","890.63","Agency Staff","130000079","23/04/14","Strategic Financial Services","Strategic Financial Services","R1100"
"Wolverhampton City Council","http://opendatacommunities.org/id/metropolitan-district-council/wolverhampton","Badenoch & Clark Recruit. Specialist","4500053","2,058.80","Agency Staff","130000080","23/04/14","Strategic Financial Services","Strategic Financial Services","R1100"
"Wolverhampton City Council","http://opendatacommunities.org/id/metropolitan-district-council/wolverhampton","Badenoch & Clark Recruit. Specialist","4500049","2,058.80","Agency Staff","130000081","23/04/14","Strategic Financial Services","Strategic Financial Services","R1100"
"Wolverhampton City Council","http://opendatacommunities.org/id/metropolitan-district-council/wolverhampton","Badenoch & Clark Recruit. Specialist","2107516","-1,087.80","Agency Staff","130000241","23/04/14","Legal Services","Legal Services","R1100"
"Wolverhampton City Council","http://opendatacommunities.org/id/metropolitan-district-council/wolverhampton","Badenoch & Clark Recruit. Specialist","2107513","-1,010.10","Agency Staff","130000242","23/04/14","Legal Services","Legal Services","R1100"
"Wolverhampton City Council","http://opendatacommunities.org/id/metropolitan-district-council/wolverhampton","Badenoch & Clark Recruit. Specialist","2107517","-788.10","Agency Staff","130000240","23/04/14","Legal Services","Legal Services","R1100"
"Wolverhampton City Council","http://opendatacommunities.org/id/metropolitan-district-council/wolverhampton","Badenoch & Clark Recruit. Specialist","2107511","-865.80","Agency Staff","130000244","23/04/14","Legal Services","Legal Services","R1100"
"Wolverhampton City Council","http://opendatacommunities.org/id/metropolitan-district-council/wolverhampton","Badenoch & Clark Recruit. Specialist","2107512","-999.00","Agency Staff","130000243","23/04/14","Legal Services","Legal Services","R1100"
"Wolverhampton City Council","http://opendatacommunities.org/id/metropolitan-district-council/wolverhampton","Bbp.Security Services & Training Limited","880CIV270214","3,678.38","Services - Security","130000177","23/04/14","Visitor Economy","Civic Hall Administration Overhead Account","R4405"
"Wolverhampton City Council","http://opendatacommunities.org/id/metropolitan-district-council/wolverhampton","Bbp.Security Services & Training Limited","882CIV27/02/14","241.88","Services - Security","130000249","23/04/14","Visitor Economy","Civic Hall Administration Overhead Account","R4405"
"Wolverhampton City Council","http://opendatacommunities.org/id/metropolitan-district-council/wolverhampton","Bbp.Security Services & Training Limited","207SAT110314","50.00","Services - Security","130000178","23/04/14","Engineering & Civic Centre","Management of Vacant Properties","R4405"
"Wolverhampton City Council","http://opendatacommunities.org/id/metropolitan-district-council/wolverhampton","BCC Mac T/A St Teresa�S Catholic","MARCH 2014","123.76","School Meals","130000346","23/04/14","Schools","Discounted School Meals Scheme","R4103"
"Wolverhampton City Council","http://opendatacommunities.org/id/metropolitan-district-council/wolverhampton","BCC Mac T/A The Giffard Catholic","DEC TO MARCH 14","498.81","School Meals","130000338","23/04/14","Schools","Discounted School Meals Scheme","R4103"
"Wolverhampton City Council","http://opendatacommunities.org/id/metropolitan-district-council/wolverhampton","Black Country Housing Group Limited","INVSCPINV/00008056","1,650.00","Services - Consultants","130000333","23/04/14","Housing","Private Sector Housing","R4404"
"Wolverhampton City Council","http://opendatacommunities.org/id/metropolitan-district-council/wolverhampton","Black Country Housing Group Limited","INVSCPINV/00008098","400.00","Services - Consultants","130000334","23/04/14","Housing","Private Sector Housing","R4404"
"Wolverhampton City Council","http://opendatacommunities.org/id/metropolitan-district-council/wolverhampton","Black Country Housing Group Limited","INVSCPINV/00008055","1,050.00","Services - Consultants","130000335","23/04/14","Housing","Private Sector Housing","R4404"
"Wolverhampton City Council","http://opendatacommunities.org/id/metropolitan-district-council/wolverhampton","Black Country Housing Group Limited","INSCPINV/00008054","1,700.00","Services - Consultants","130000336","23/04/14","Housing","Private Sector Housing","R4404"
"Wolverhampton City Council","http://opendatacommunities.org/id/metropolitan-district-council/wolverhampton","Blue Group Interntl Limited T/A Bluecare","HSOC5278820","97.65","Agency Staff","130000308","23/04/14","Children in Need & Child Protection","Duty and Assessment - Section 17","R1100"
"Wolverhampton City Council","http://opendatacommunities.org/id/metropolitan-district-council/wolverhampton","Blue Group Interntl Limited T/A Bluecare","HSOC5270954","92.70","Agency Staff","130000295","23/04/14","Children in Need & Child Protection","Duty and Assessment - Section 17","R1100"
"Wolverhampton City Council","http://opendatacommunities.org/id/metropolitan-district-council/wolverhampton","Blue Group Interntl Limited T/A Bluecare","HSOC5261196","67.88","Agency Staff","130000300","23/04/14","Children in Need & Child Protection","Duty & Assessment","R1100"
"Wolverhampton City Council","http://opendatacommunities.org/id/metropolitan-district-council/wolverhampton","Blue Group Interntl Limited T/A Bluecare","HSOC5261801","79.25","Agency Staff","130000302","23/04/14","Children in Need & Child Protection","Duty & Assessment","R1100"
"Wolverhampton City Council","http://opendatacommunities.org/id/metropolitan-district-council/wolverhampton","Blue Group Interntl Limited T/A Bluecare","HSOC5261802","67.24","Agency Staff","130000303","23/04/14","Children in Need & Child Protection","Duty & Assessment","R1100"
"Wolverhampton City Council","http://opendatacommunities.org/id/metropolitan-district-council/wolverhampton","Blue Group Interntl Limited T/A Bluecare","HSOC5245841","1,221.80","Agency Staff","130000574","23/04/14","Children With Disabilities","Childrens with Disabilities Team","R1100"
"Wolverhampton City Council","http://opendatacommunities.org/id/metropolitan-district-council/wolverhampton","Blue Group Interntl Limited T/A Bluecare","HSOC5261805","83.89","Agency Staff","130000293","23/04/14","Children in Need & Child Protection","Duty & Assessment","R1100"
"Wolverhampton City Council","http://opendatacommunities.org/id/metropolitan-district-council/wolverhampton","Blue Group Interntl Limited T/A Bluecare","HSOC5269480","92.70","Agency Staff","130000294","23/04/14","Children in Need & Child Protection","Duty and Assessment - Section 17","R1100"
"Wolverhampton City Council","http://opendatacommunities.org/id/metropolitan-district-council/wolverhampton","Blue Group Interntl Limited T/A Bluecare","HSOC5270953","1,184.00","Agency Staff","130000184","23/04/14","Children in Need & Child Protection","Duty and Assessment - Section 17","R1100"
"Wolverhampton City Council","http://opendatacommunities.org/id/metropolitan-district-council/wolverhampton","Blue Group Interntl Limited T/A Bluecare","HSOC5272943","1,184.00","Agency Staff","130000185","23/04/14","Children in Need & Child Protection","Duty and Assessment - Section 17","R1100"
"Wolverhampton City Council","http://opendatacommunities.org/id/metropolitan-district-council/wolverhampton","Blue Group Interntl Limited T/A Bluecare","HSOC5261195","64.92","Agency Staff","130000102","23/04/14","Children in Need & Child Protection","Duty & Assessment","R1100"
"Wolverhampton City Council","http://opendatacommunities.org/id/metropolitan-district-council/wolverhampton","Blue Group Interntl Limited T/A Bluecare","HSOC5261194","58.30","Agency Staff","130000103","23/04/14","Children in Need & Child Protection","Duty & Assessment","R1100"
"Wolverhampton City Council","http://opendatacommunities.org/id/metropolitan-district-council/wolverhampton","Blue Group Interntl Limited T/A Bluecare","HSOC5260919","75.47","Agency Staff","130000108","23/04/14","Children in Need & Child Protection","Duty & Assessment","R1100"
"Wolverhampton City Council","http://opendatacommunities.org/id/metropolitan-district-council/wolverhampton","Blue Group Interntl Limited T/A Bluecare","HSOC5260913","70.01","Agency Staff","130000109","23/04/14","Children in Need & Child Protection","Duty & Assessment","R1100"
"Wolverhampton City Council","http://opendatacommunities.org/id/metropolitan-district-council/wolverhampton","Blue Group Interntl Limited T/A Bluecare","HSOC5260912","72.51","Agency Staff","130000111","23/04/14","Children in Need & Child Protection","Duty & Assessment","R1100"
"Wolverhampton City Council","http://opendatacommunities.org/id/metropolitan-district-council/wolverhampton","Blue Group Interntl Limited T/A Bluecare","HSOC5261193","71.29","Agency Staff","130000105","23/04/14","Children in Need & Child Protection","Duty & Assessment","R1100"
"Wolverhampton City Council","http://opendatacommunities.org/id/metropolitan-district-council/wolverhampton","Blue Group Interntl Limited T/A Bluecare","HSOC5261192","54.48","Agency Staff","130000106","23/04/14","Children in Need & Child Protection","Duty & Assessment","R1100"
"Wolverhampton City Council","http://opendatacommunities.org/id/metropolitan-district-council/wolverhampton","Blue Group Interntl Limited T/A Bluecare","HSOC5260920","64.19","Agency Staff","130000107","23/04/14","Children in Need & Child Protection","Duty & Assessment","R1100"
"Wolverhampton City Council","http://opendatacommunities.org/id/metropolitan-district-council/wolverhampton","Blue Group Interntl Limited T/A Bluecare","HSOC5261803","1,217.30","Agency Staff","130000154","23/04/14","Children With Disabilities","Childrens with Disabilities Team","R1100"
"Wolverhampton City Council","http://opendatacommunities.org/id/metropolitan-district-council/wolverhampton","Blue Group Interntl Limited T/A Bluecare","hsoc5276846","960.00","Agency Staff","130000212","23/04/14","Children in Need & Child Protection","Duty and Assessment - Section 17","R1100"
"Wolverhampton City Council","http://opendatacommunities.org/id/metropolitan-district-council/wolverhampton","Blue Group Interntl Limited T/A Bluecare","HSOC5278819","1,184.00","Agency Staff","130000213","23/04/14","Children in Need & Child Protection","Duty and Assessment - Section 17","R1100"
"Wolverhampton City Council","http://opendatacommunities.org/id/metropolitan-district-council/wolverhampton","Blue Group Interntl Limited T/A Bluecare","HSOC5269479","1,184.00","Agency Staff","130000175","23/04/14","Children in Need & Child Protection","Duty and Assessment - Section 17","R1100"
"Wolverhampton City Council","http://opendatacommunities.org/id/metropolitan-district-council/wolverhampton","Blue Group Interntl Limited T/A Bluecare","HSOC5267013","1,184.00","Agency Staff","130000176","23/04/14","Children in Need & Child Protection","Duty and Assessment - Section 17","R1100"
"Wolverhampton City Council","http://opendatacommunities.org/id/metropolitan-district-council/wolverhampton","Blue Group Interntl Limited T/A Bluecare","HSOC5263557","3,029.13","Agency Staff","130000170","23/04/14","Children in Need & Child Protection","Duty & Assessment","R1100"
"Wolverhampton City Council","http://opendatacommunities.org/id/metropolitan-district-council/wolverhampton","Blue Group Interntl Limited T/A Bluecare","HSOC5274856","1,189.40","Agency Staff","130000156","23/04/14","Children With Disabilities","Childrens with Disabilities Team","R1100"
"Wolverhampton City Council","http://opendatacommunities.org/id/metropolitan-district-council/wolverhampton","Blue Group Interntl Limited T/A Bluecare","HSOC5261804","1,443.00","Agency Staff","130000157","23/04/14","Children in Need & Child Protection","Duty & Assessment","R1100"
"Wolverhampton City Council","http://opendatacommunities.org/id/metropolitan-district-council/wolverhampton","Blue Group Interntl Limited T/A Bluecare","HSOC5262278","1,184.00","Agency Staff","130000159","23/04/14","Children in Need & Child Protection","Duty and Assessment - Section 17","R1100"
"Wolverhampton City Council","http://opendatacommunities.org/id/metropolitan-district-council/wolverhampton","Blue Group Interntl Limited T/A Bluecare","HSOC5280959","1,184.00","Agency Staff","130000215","23/04/14","Children in Need & Child Protection","Duty and Assessment - Section 17","R1100"
"Wolverhampton City Council","http://opendatacommunities.org/id/metropolitan-district-council/wolverhampton","Blue Group Interntl Limited T/A Bluecare","HSOC5274857","1,184.00","Agency Staff","130000187","23/04/14","Children in Need & Child Protection","Duty and Assessment - Section 17","R1100"
"Wolverhampton City Council","http://opendatacommunities.org/id/metropolitan-district-council/wolverhampton","Blue Group Interntl Limited T/A Bluecare","HSOC5284916","1,184.00","Agency Staff","130000218","23/04/14","Children in Need & Child Protection","Duty & Assessment","R1100"
"Wolverhampton City Council","http://opendatacommunities.org/id/metropolitan-district-council/wolverhampton","Blue Group Interntl Limited T/A Bluecare","HSOC5282924","1,184.00","Agency Staff","130000219","23/04/14","Children in Need & Child Protection","Duty and Assessment - Section 17","R1100"
"Wolverhampton City Council","http://opendatacommunities.org/id/metropolitan-district-council/wolverhampton","Blue Group Interntl Limited T/A Bluecare","HSOC5281694","435.00","Agency Staff","130000220","23/04/14","Looked After Children","Adoption Reform","R1100"
"Wolverhampton City Council","http://opendatacommunities.org/id/metropolitan-district-council/wolverhampton","Blue Group Interntl Limited T/A Bluecare","HSOC5272944","83.70","Agency Staff","130000296","23/04/14","Children in Need & Child Protection","Duty and Assessment - Section 17","R1100"
"Wolverhampton City Council","http://opendatacommunities.org/id/metropolitan-district-council/wolverhampton","Blue Group Interntl Limited T/A Bluecare","HSOC5274858","96.75","Agency Staff","130000299","23/04/14","Children in Need & Child Protection","Duty and Assessment - Section 17","R1100"
"Wolverhampton City Council","http://opendatacommunities.org/id/metropolitan-district-council/wolverhampton","Blue Group Interntl Limited T/A Bluecare","HSOC5276847","71.10","Agency Staff","130000306","23/04/14","Children in Need & Child Protection","Duty and Assessment - Section 17","R1100"
"Wolverhampton City Council","http://opendatacommunities.org/id/metropolitan-district-council/wolverhampton","Blue Group Interntl Limited T/A Bluecare","HSOC5280958","91.35","Agency Staff","130000314","23/04/14","Children in Need & Child Protection","Duty and Assessment - Section 17","R1100"
"Wolverhampton City Council","http://opendatacommunities.org/id/metropolitan-district-council/wolverhampton","Blue Group Interntl Limited T/A Bluecare","HSOC5282925","101.70","Agency Staff","130000320","23/04/14","Children in Need & Child Protection","Duty & Assessment","R1100"
"Wolverhampton City Council","http://opendatacommunities.org/id/metropolitan-district-council/wolverhampton","Blue Group Interntl Limited T/A Bluecare","HSOC5284917","104.85","Agency Staff","130000322","23/04/14","Children in Need & Child Protection","Duty & Assessment","R1100"
"Wolverhampton City Council","http://opendatacommunities.org/id/metropolitan-district-council/wolverhampton","Blue Group Interntl Limited T/A Bluecare","HSOC5260911","69.86","Agency Staff","130000116","23/04/14","Children in Need & Child Protection","Duty & Assessment","R1100"
"Wolverhampton City Council","http://opendatacommunities.org/id/metropolitan-district-council/wolverhampton","Blue Group Interntl Limited T/A Bluecare","HSOC5281692","450.00","Agency Staff","130000221","23/04/14","Looked After Children","Adoption Reform","R1100"
"Wolverhampton City Council","http://opendatacommunities.org/id/metropolitan-district-council/wolverhampton","Blue Group Interntl Limited T/A Bluecare","HSOC5263871","480.00","Agency Staff","130000222","23/04/14","Children in Need & Child Protection","Duty & Assessment","R1100"
"Wolverhampton City Council","http://opendatacommunities.org/id/metropolitan-district-council/wolverhampton","Blue Group Interntl Limited T/A Bluecare","HSOC5265032","704.00","Agency Staff","130000223","23/04/14","Children in Need & Child Protection","Duty and Assessment - Section 17","R1100"
"Wolverhampton City Council","http://opendatacommunities.org/id/metropolitan-district-council/wolverhampton","Brakes/Brakefresh","9237043952","33.41","Catering","130000578","23/04/14","Catering","Civic Centre Catering","R4100"
"Wolverhampton City Council","http://opendatacommunities.org/id/metropolitan-district-council/wolverhampton","Brakes/Brakefresh","41755627","33.09","Catering","130000591","23/04/14","Catering","Civic Centre Catering","R4100"
"Wolverhampton City Council","http://opendatacommunities.org/id/metropolitan-district-council/wolverhampton","British Gas Business","66533467/1","11.75","Electricity","130000239","23/04/14","Markets","Wolverhampton Indoor and Open Market","R2100"
"Wolverhampton City Council","http://opendatacommunities.org/id/metropolitan-district-council/wolverhampton","British Gas Business","66533467/1","9.60","Electricity","130000239","23/04/14","Markets","Wolverhampton Indoor and Open Market","R2100"
"Wolverhampton City Council","http://opendatacommunities.org/id/metropolitan-district-council/wolverhampton","BT (Phone Bills)","CM 6674 2970 Q013 5R","66.00","Comms - Telephone Call charges","130000234","23/04/14","Learning Disability Provider","Community Access & Leisure - North","R4505"
"Wolverhampton City Council","http://opendatacommunities.org/id/metropolitan-district-council/wolverhampton","BT (Phone Bills)","CM 6674 2970 Q013 5R","13.50","Comms - Telephone Call charges","130000234","23/04/14","Learning Disability Provider","Community Access & Leisure - North","R4505"
"Wolverhampton City Council","http://opendatacommunities.org/id/metropolitan-district-council/wolverhampton","BT (Phone Bills)","CM 5937 0306 Q101 NO","92.70","Fixtures and Fittings - R&M","130000485","23/04/14","Community Centres (Corporate Landlord)","Ashmore Park Community Centre","R2502"
"Wolverhampton City Council","http://opendatacommunities.org/id/metropolitan-district-council/wolverhampton","BT (Phone Bills)","CM 5912 6723 Q100 XS","92.86","Fixtures and Fittings - R&M","130000487","23/04/14","Community Centres (Corporate Landlord)","Long Knowle Community Centre","R2502"
"Wolverhampton City Council","http://opendatacommunities.org/id/metropolitan-district-council/wolverhampton","BT (Phone Bills)","CM 6689 Q011 3&","92.70","Fixtures and Fittings - R&M","130000488","23/04/14","Community Centres (Corporate Landlord)","Low Hill Community Centre","R2502"
"Wolverhampton City Council","http://opendatacommunities.org/id/metropolitan-district-council/wolverhampton","BT (Phone Bills)","CM 6072 5087 Q077 PE","92.70","Fixtures and Fittings - R&M","130000484","23/04/14","Community Centres (Corporate Landlord)","Eastfield Community Centre","R2502"
"Wolverhampton City Council","http://opendatacommunities.org/id/metropolitan-district-council/wolverhampton","BT (Phone Bills)","CM 5929 7898 Q100 WS","13.48","Fixtures and Fittings - R&M","130000228","23/04/14","Community Centres (Corporate Landlord)","Dunstall Hill Community Centre","R2502"
"Wolverhampton City Council","http://opendatacommunities.org/id/metropolitan-district-council/wolverhampton","BT (Phone Bills)","CM 5990 7452 Q089 74","79.20","Fixtures and Fittings - R&M","130000230","23/04/14","Youth Services","Youth Service - Mirage Youth Centre","R2502"
"Wolverhampton City Council","http://opendatacommunities.org/id/metropolitan-district-council/wolverhampton","BT (Phone Bills)","CM 5931 7141 Q101 4U","66.00","Fixtures and Fittings - R&M","130000226","23/04/14","Community Centres (Corporate Landlord)","Heath Town Community Centre","R2502"
"Wolverhampton City Council","http://opendatacommunities.org/id/metropolitan-district-council/wolverhampton","BT (Phone Bills)","CM 5931 7141 Q101 4U","13.50","Fixtures and Fittings - R&M","130000226","23/04/14","Community Centres (Corporate Landlord)","Heath Town Community Centre","R2502"
"Wolverhampton City Council","http://opendatacommunities.org/id/metropolitan-district-council/wolverhampton","BT (Phone Bills)","CM 5960 9271 Q096 11","66.00","Fixtures and Fittings - R&M","130000227","23/04/14","Community Centres (Corporate Landlord)","Dunstall Hill Community Centre","R2502"
"Wolverhampton City Council","http://opendatacommunities.org/id/metropolitan-district-council/wolverhampton","BT (Phone Bills)","CM 5960 9271 Q096 11","13.50","Fixtures and Fittings - R&M","130000227","23/04/14","Community Centres (Corporate Landlord)","Dunstall Hill Community Centre","R2502"
"Wolverhampton City Council","http://opendatacommunities.org/id/metropolitan-district-council/wolverhampton","BT (Phone Bills)","CM 5929 7898 Q100 WS","70.70","Fixtures and Fittings - R&M","130000228","23/04/14","Community Centres (Corporate Landlord)","Dunstall Hill Community Centre","R2502"
"Wolverhampton City Council","http://opendatacommunities.org/id/metropolitan-district-council/wolverhampton","BT (Phone Bills)","CM 5937 0317 Q101 30","112.06","Fixtures and Fittings - R&M","130000486","23/04/14","Youth Services","Youth Service - Park Village","R2502"
"Wolverhampton City Council","http://opendatacommunities.org/id/metropolitan-district-council/wolverhampton","Browne Jacobson Llp","TP110113","642.00","Services - Professional Fees","130000438","23/04/14","Audit Services","Legal Liability","R4400"
"Wolverhampton City Council","http://opendatacommunities.org/id/metropolitan-district-council/wolverhampton","Browne Jacobson Llp","TP110113","395.00","Services - Professional Fees","130000438","23/04/14","Audit Services","Legal Liability","R4400"
"Wolverhampton City Council","http://opendatacommunities.org/id/metropolitan-district-council/wolverhampton","United Living","AR001078","229,059.85","Construction and Conversion","130000881","23/04/14","","Decent Homes - Stock Condition","C1100"
"Wolverhampton City Council","http://opendatacommunities.org/id/metropolitan-district-council/wolverhampton","United Living","AR001075","14,169.78","Construction and Conversion","130000882","23/04/14","","Decent Homes - Stock Condition","C1100"
"Wolverhampton City Council","http://opendatacommunities.org/id/metropolitan-district-council/wolverhampton","United Living","AR001074","522,013.70","Construction and Conversion","130000880","23/04/14","","Decent Homes - Stock Improvements","C1100"
"Wolverhampton City Council","http://opendatacommunities.org/id/metropolitan-district-council/wolverhampton","United Living","AR001072","130,914.56","Construction and Conversion","130000659","23/04/14","","Decent Homes - Stock Improvements","C1100"
"Wolverhampton City Council","http://opendatacommunities.org/id/metropolitan-district-council/wolverhampton","United Living","AR001073","137,061.88","Construction and Conversion","130000660","23/04/14","","Decent Homes - Stock Improvements","C1100"
"Wolverhampton City Council","http://opendatacommunities.org/id/metropolitan-district-council/wolverhampton","United Living","AR001070","326,882.85","Construction and Conversion","130000656","23/04/14","","Decent Homes - Stock Improvements","C1100"
"Wolverhampton City Council","http://opendatacommunities.org/id/metropolitan-district-council/wolverhampton","United Living","AR001071","11,365.74","Construction and Conversion","130000657","23/04/14","","Decent Homes - Stock Improvements","C1100"
"Wolverhampton City Council","http://opendatacommunities.org/id/metropolitan-district-council/wolverhampton","United Living","AR001076","24,158.66","Construction and Conversion","130000658","23/04/14","","Decent Homes - Stock Improvements","C1100"
"Wolverhampton City Council","http://opendatacommunities.org/id/metropolitan-district-council/wolverhampton","United Living","AR001077","90,463.26","R&M - Departmental planned (external)","130000866","23/04/14","Housing Revenue Account","Amounts to be Settled with Wolverhampton Homes","R2001"
"Wolverhampton City Council","http://opendatacommunities.org/id/metropolitan-district-council/wolverhampton","Burdens Limited","32WC119983","6.21","TPP - Maintenance on Other Roads","130000876","23/04/14","Highways Maintenance","Highway & Land Drainage","R5710"
"Wolverhampton City Council","http://opendatacommunities.org/id/metropolitan-district-council/wolverhampton","Burdens Limited","32WC119872","246.00","TPP - Maintenance on Other Roads","130000877","23/04/14","Highways Maintenance","Highway & Land Drainage","R5710"
"Wolverhampton City Council","http://opendatacommunities.org/id/metropolitan-district-council/wolverhampton","Burdens Limited","32WC119871","139.32","TPP - Maintenance on Other Roads","130000878","23/04/14","Highways Maintenance","Highway & Land Drainage","R5710"
"Wolverhampton City Council","http://opendatacommunities.org/id/metropolitan-district-council/wolverhampton","Burdens Limited","32WD119870","91.00","TPP - Maintenance on Other Roads","130000879","23/04/14","Highways Maintenance","Highway & Land Drainage","R5710"
"Wolverhampton City Council","http://opendatacommunities.org/id/metropolitan-district-council/wolverhampton","Capita Business Serv Limited","93512142","2,500.00","Computing - Repair and Maint","130000703","23/04/14","Library Services","Global Budgets","R4533"
"Wolverhampton City Council","http://opendatacommunities.org/id/metropolitan-district-council/wolverhampton","Capita Business Serv Limited","93515267","66,779.90","Computing - Purchase of Software","130000649","23/04/14","Library Services","Global Budgets","R4531"
"Wolverhampton City Council","http://opendatacommunities.org/id/metropolitan-district-council/wolverhampton","Capita Business Serv Limited","93486579","143,827.04","Services - General Licences","130000582","23/04/14","School Planning & Resources","E Services - Licenses","R4402"
"Wolverhampton City Council","http://opendatacommunities.org/id/metropolitan-district-council/wolverhampton","Capita Business Serv Limited","93486578","144,132.56","Services - General Licences","130000583","23/04/14","School Planning & Resources","Education Data Services","R4402"
"Wolverhampton City Council","http://opendatacommunities.org/id/metropolitan-district-council/wolverhampton","Capita Resourcing Limited","01425212","1,241.30","Agency Staff","130000716","23/04/14","Children in Need & Child Protection","Duty & Assessment","R1100"
"Wolverhampton City Council","http://opendatacommunities.org/id/metropolitan-district-council/wolverhampton","Capita Resourcing Limited","01425890","1,232.10","Agency Staff","130000719","23/04/14","Children in Need & Child Protection","Duty & Assessment","R1100"
"Wolverhampton City Council","http://opendatacommunities.org/id/metropolitan-district-council/wolverhampton","Capita Resourcing Limited","01428093","1,232.10","Agency Staff","130000723","23/04/14","Children in Need & Child Protection","Duty & Assessment","R1100"
"Wolverhampton City Council","http://opendatacommunities.org/id/metropolitan-district-council/wolverhampton","Capita Resourcing Limited","01425917","1,981.00","Agency Staff","130000721","23/04/14","Looked After Children","Fostering Team & Allowances","R1100"
"Wolverhampton City Council","http://opendatacommunities.org/id/metropolitan-district-council/wolverhampton","Capita Resourcing Limited","01424470","1,113.88","Agency Staff","130000714","23/04/14","Children in Need & Child Protection","North East Locality Service","R1100"
"Wolverhampton City Council","http://opendatacommunities.org/id/metropolitan-district-council/wolverhampton","Capita Resourcing Limited","01428085","133.00","Agency Staff","130000722","23/04/14","Children in Need & Child Protection","North East Locality Service","R1100"
"Wolverhampton City Council","http://opendatacommunities.org/id/metropolitan-district-council/wolverhampton","Capita Resourcing Limited","01425905","1,252.75","Agency Staff","130000720","23/04/14","Children in Need & Child Protection","North East Locality Service","R1100"
"Wolverhampton City Council","http://opendatacommunities.org/id/metropolitan-district-council/wolverhampton","Capita Resourcing Limited","01425222","1,250.05","Agency Staff","130000717","23/04/14","Children in Need & Child Protection","North East Locality Service","R1100"
"Wolverhampton City Council","http://opendatacommunities.org/id/metropolitan-district-council/wolverhampton","Capita Resourcing Limited(Veredus)","01443014","310.64","Agency Staff","130000063","23/04/14","Learning Disability Provider","Duke Street Bungalows","R1100"
"Wolverhampton City Council","http://opendatacommunities.org/id/metropolitan-district-council/wolverhampton","Capita Resourcing Limited(Veredus)","01442478","155.32","Agency Staff","130000054","23/04/14","Learning Disability Provider","Duke Street Bungalows","R1100"
"Wolverhampton City Council","http://opendatacommunities.org/id/metropolitan-district-council/wolverhampton","Capita Resourcing Limited(Veredus)","500070083","1,125.91","Agency Staff","130000017","23/04/14","Older People Assessment & Care Management","Assessment Team (East)","R1100"
"Wolverhampton City Council","http://opendatacommunities.org/id/metropolitan-district-council/wolverhampton","Capita Resourcing Limited(Veredus)","01442500","1,981.00","Agency Staff","130000055","23/04/14","Looked After Children","Fostering Team","R1100"
"Wolverhampton City Council","http://opendatacommunities.org/id/metropolitan-district-council/wolverhampton","Capita Resourcing Limited(Veredus)","01442521","1,981.00","Agency Staff","130000056","23/04/14","Looked After Children","Fostering Team","R1100"
"Wolverhampton City Council","http://opendatacommunities.org/id/metropolitan-district-council/wolverhampton","Capita Resourcing Limited(Veredus)","01442497","1,981.00","Agency Staff","130000053","23/04/14","Looked After Children","Fostering Team","R1100"
"Wolverhampton City Council","http://opendatacommunities.org/id/metropolitan-district-council/wolverhampton","Carter Brown Associates","112659","211.08","Services - Professional Fees","130000584","23/04/14","Children in Need & Child Protection","Head of Service - CINCP","R4400"
"Wolverhampton City Council","http://opendatacommunities.org/id/metropolitan-district-council/wolverhampton","Carver (Wolverhampton) Limited","PSINV01000810408","117.25","Equipment - Purchase","130000580","23/04/14","Highways Maintenance","Patching","R4000"
"Wolverhampton City Council","http://opendatacommunities.org/id/metropolitan-district-council/wolverhampton","Castle Business & Enterprise College","P8091120140416","300.00","Grant Payments to Individuals","190002730","23/04/14","Looked After Children","LAC Education Team (LACE)","R6402"
"Wolverhampton City Council","http://opendatacommunities.org/id/metropolitan-district-council/wolverhampton","Castle Business & Enterprise College","P8091120140416","300.00","Grant Payments to Individuals","190002730","23/04/14","Looked After Children","LAC Education Team (LACE)","R6402"
"Wolverhampton City Council","http://opendatacommunities.org/id/metropolitan-district-council/wolverhampton","Cent. Learn. P�Ship Trust T/A Woden","DISCOUNTED MEALS REFUND","957.58","School Meals","130000445","23/04/14","Schools","Discounted School Meals Scheme","R4103"
"Wolverhampton City Council","http://opendatacommunities.org/id/metropolitan-district-council/wolverhampton","Central Youth Theatre","11","60.00","Services - Professional Fees","130000579","23/04/14","Culture Arts & Heritage","Catalyst Arts","R4400"
"Wolverhampton City Council","http://opendatacommunities.org/id/metropolitan-district-council/wolverhampton","Chadsmoor C Of E (Vc) Junior School","P8091120140416","300.00","Grant Payments to Individuals","190002730","23/04/14","Looked After Children","LAC Education Team (LACE)","R6402"
"Wolverhampton City Council","http://opendatacommunities.org/id/metropolitan-district-council/wolverhampton","Church Stretton School","P8091120140416","300.00","Grant Payments to Individuals","190002730","23/04/14","Looked After Children","LAC Education Team (LACE)","R6402"
"Wolverhampton City Council","http://opendatacommunities.org/id/metropolitan-district-council/wolverhampton","Coactiva Aspiren Limited","10994","19,250.00","Computing - Purchase of Software","130000427","23/04/14","Revenues & Benefits","Benefits","R4531"
"Wolverhampton City Council","http://opendatacommunities.org/id/metropolitan-district-council/wolverhampton","Coca-Cola Enterprises Limited","9101504204","303.36","Provisions (Not for resale)","130000426","23/04/14","Catering","Education Catering - General Overheads","R4101"
"Wolverhampton City Council","http://opendatacommunities.org/id/metropolitan-district-council/wolverhampton","Codsall Community High School","P8091120140416","300.00","Grant Payments to Individuals","190002730","23/04/14","Looked After Children","LAC Education Team (LACE)","R6402"
"Wolverhampton City Council","http://opendatacommunities.org/id/metropolitan-district-council/wolverhampton","Codsall Community High School","P8091120140416","300.00","Grant Payments to Individuals","190002730","23/04/14","Looked After Children","LAC Education Team (LACE)","R6402"
"Wolverhampton City Council","http://opendatacommunities.org/id/metropolitan-district-council/wolverhampton","Codsall Community High School","P8091120140416","300.00","Grant Payments to Individuals","190002730","23/04/14","Looked After Children","LAC Education Team (LACE)","R6402"
"Wolverhampton City Council","http://opendatacommunities.org/id/metropolitan-district-council/wolverhampton","Connaught House Veterinary Hospital","5739","80.00","Services - Professional Fees","130000423","23/04/14","Regulatory Services","Pest Control & Animal Welfare","R4400"
"Wolverhampton City Council","http://opendatacommunities.org/id/metropolitan-district-council/wolverhampton","Connaught House Veterinary Hospital","5740","80.00","Services - Professional Fees","130000422","23/04/14","Regulatory Services","Pest Control & Animal Welfare","R4400"
"Wolverhampton City Council","http://opendatacommunities.org/id/metropolitan-district-council/wolverhampton","Corbet School Tech And Lang College","P8091120140416","300.00","Grant Payments to Individuals","190002730","23/04/14","Looked After Children","LAC Education Team (LACE)","R6402"
"Wolverhampton City Council","http://opendatacommunities.org/id/metropolitan-district-council/wolverhampton","Danks Cockburn Public Relations Limited","WCC2013-1","800.00","Marketing \ Non-staff advertising","130000224","23/04/14","Communications & Marketing","Communications & Marketing - General","R4317"
"Wolverhampton City Council","http://opendatacommunities.org/id/metropolitan-district-council/wolverhampton","Disable Aids (Cannock) Limited","66025","126.13","Equipment - R & M","130000450","23/04/14","Independent Living Service","Independent Living Service","R4003"
"Wolverhampton City Council","http://opendatacommunities.org/id/metropolitan-district-council/wolverhampton","Disable Aids (Cannock) Limited","65015","2,640.00","Equipment - Purchase","130000211","23/04/14","Older People Provider Services","Older People Provider Management","R4000"
"Wolverhampton City Council","http://opendatacommunities.org/id/metropolitan-district-council/wolverhampton","Dr Libberton and Ram","C DUCKHOUSE","40.00","Medical Fees","130000741","23/04/14","Cleaning & Caretaking Service","Cleaning of Buildings - General","R1400"
"Wolverhampton City Council","http://opendatacommunities.org/id/metropolitan-district-council/wolverhampton","Francis Pearce P�ship-Leslie Keats(DCE)","2171","300.00","TPP - Maintenance Contractor - General","130000494","23/04/14","Highways Maintenance","Other Maintenance","R5720"
"Wolverhampton City Council","http://opendatacommunities.org/id/metropolitan-district-council/wolverhampton","Francis Pearce P�ship-Leslie Keats(DCE)","2171","168.20","TPP - Maintenance Contractor - General","130000494","23/04/14","Highways Maintenance","Other Maintenance","R5720"
"Wolverhampton City Council","http://opendatacommunities.org/id/metropolitan-district-council/wolverhampton","Dudley M B C","P8091120140416","300.00","Grant Payments to Individuals","190002730","23/04/14","Looked After Children","LAC Education Team (LACE)","R6402"
"Wolverhampton City Council","http://opendatacommunities.org/id/metropolitan-district-council/wolverhampton","E.On(Consumption Of Gas/Elec Units).","HFC7B9FCO","7.73","Electricity","130000238","23/04/14","Markets","Wolverhampton Indoor and Open Market","R2100"
"Wolverhampton City Council","http://opendatacommunities.org/id/metropolitan-district-council/wolverhampton","ECMAT - Smestow School","DISCOUNTED MEALS","430.43","School Meals","130000261","23/04/14","Schools","Discounted School Meals Scheme","R4103"
"Wolverhampton City Council","http://opendatacommunities.org/id/metropolitan-district-council/wolverhampton","Eden Brown Limited","3S118990","355.32","Agency Staff","130000266","23/04/14","Older People Provider Services","Warstones Resource Centre","R1100"
"Wolverhampton City Council","http://opendatacommunities.org/id/metropolitan-district-council/wolverhampton","Eden Brown Limited","3S119187","116.62","Agency Staff","130000268","23/04/14","Older People Provider Services","Woden Resource Centre","R1100"
"Wolverhampton City Council","http://opendatacommunities.org/id/metropolitan-district-council/wolverhampton","Eden Brown Limited","3S119756","407.79","Agency Staff","130000373","23/04/14","Older People Provider Services","Warstones Resource Centre","R1100"
"Wolverhampton City Council","http://opendatacommunities.org/id/metropolitan-district-council/wolverhampton","Eden Brown Limited","3S119938","778.41","Agency Staff","130000397","23/04/14","Older People Provider Services","Warstones Resource Centre","R1100"
"Wolverhampton City Council","http://opendatacommunities.org/id/metropolitan-district-council/wolverhampton","Eden Brown Limited","3S120239","57.20","Agency Staff","130000398","23/04/14","Learning Disability Provider","Community Access & Leisure - North","R1100"
"Wolverhampton City Council","http://opendatacommunities.org/id/metropolitan-district-council/wolverhampton","Eden Brown Limited","3S119531","118.44","Agency Staff","130000371","23/04/14","Older People Provider Services","Warstones Resource Centre","R1100"
"Wolverhampton City Council","http://opendatacommunities.org/id/metropolitan-district-council/wolverhampton","Eden Brown Limited","3S119606","333.39","Agency Staff","130000372","23/04/14","Older People Provider Services","Merry Hill House","R1100"
"Wolverhampton City Council","http://opendatacommunities.org/id/metropolitan-district-council/wolverhampton","Eden Brown Limited","3S119883","128.18","Agency Staff","130000437","23/04/14","Older People Provider Services","Merry Hill House","R1100"
"Wolverhampton City Council","http://opendatacommunities.org/id/metropolitan-district-council/wolverhampton","Eden Brown Limited","3S120388","73.15","Agency Staff","130000704","23/04/14","Learning Disability Provider","Swan Bank","R1100"
"Wolverhampton City Council","http://opendatacommunities.org/id/metropolitan-district-council/wolverhampton","Eden Brown Limited","3S121294","187.20","Agency Staff","130000710","23/04/14","Older People Provider Services","Merry Hill House","R1100"
"Wolverhampton City Council","http://opendatacommunities.org/id/metropolitan-district-council/wolverhampton","Eden Brown Limited","3S117934","55.56","Agency Staff","130000263","23/04/14","Learning Disability Provider","Duke Street Bungalows","R1100"
"Wolverhampton City Council","http://opendatacommunities.org/id/metropolitan-district-council/wolverhampton","Eden Brown Limited","3S119721","80.05","Agency Staff","130000436","23/04/14","Learning Disability Provider","Duke Street Bungalows","R1100"
"Wolverhampton City Council","http://opendatacommunities.org/id/metropolitan-district-council/wolverhampton","Eden Brown Limited","3S118170","55.56","Agency Staff","130000264","23/04/14","Learning Disability Provider","Duke Street Bungalows","R1100"
"Wolverhampton City Council","http://opendatacommunities.org/id/metropolitan-district-council/wolverhampton","Eden Brown Limited","3S124292","528.99","Agency Staff","130000057","23/04/14","Learning Disability Provider","Duke Street Bungalows","R1100"
"Wolverhampton City Council","http://opendatacommunities.org/id/metropolitan-district-council/wolverhampton","Eden Brown Limited","3S124293","507.00","Agency Staff","130000059","23/04/14","Learning Disability Provider","Duke Street Bungalows","R1100"
"Wolverhampton City Council","http://opendatacommunities.org/id/metropolitan-district-council/wolverhampton","Eden Brown Limited","3S124294","166.40","Agency Staff","130000061","23/04/14","Learning Disability Provider","Duke Street Bungalows","R1100"
"Wolverhampton City Council","http://opendatacommunities.org/id/metropolitan-district-council/wolverhampton","Elysian Field Limited","P8091220140416","684.00","Client Allowances","190002731","23/04/14","Looked After Children","LAC Transitions Team","R6301"
"Wolverhampton City Council","http://opendatacommunities.org/id/metropolitan-district-council/wolverhampton","Elysian Field Limited","P8091220140416","684.00","Client Allowances","190002731","23/04/14","Looked After Children","LAC Transitions Team","R6301"
"Wolverhampton City Council","http://opendatacommunities.org/id/metropolitan-district-council/wolverhampton","Elysian Field Limited","P8091220140416","684.00","Client Allowances","190002731","23/04/14","Looked After Children","LAC Transitions Team","R6301"
"Wolverhampton City Council","http://opendatacommunities.org/id/metropolitan-district-council/wolverhampton","Elysian Field Limited","P8091220140416","684.00","Client Allowances","190002731","23/04/14","Looked After Children","LAC Transitions Team","R6301"
"Wolverhampton City Council","http://opendatacommunities.org/id/metropolitan-district-council/wolverhampton","Entrust Social Care Limited","28988","1,153.83","Agency Staff","130000358","23/04/14","Children in Need & Child Protection","North East Locality Service","R1100"
"Wolverhampton City Council","http://opendatacommunities.org/id/metropolitan-district-council/wolverhampton","Entrust Social Care Limited","29468","1,160.72","Agency Staff","130000359","23/04/14","Children in Need & Child Protection","North East Locality Service","R1100"
"Wolverhampton City Council","http://opendatacommunities.org/id/metropolitan-district-council/wolverhampton","Entrust Social Care Limited","30589","1,120.63","Agency Staff","130000360","23/04/14","Children in Need & Child Protection","North East Locality Service","R1100"
"Wolverhampton City Council","http://opendatacommunities.org/id/metropolitan-district-council/wolverhampton","Entrust Social Care Limited","30909","1,148.45","Agency Staff","130000364","23/04/14","Children in Need & Child Protection","North East Locality Service","R1100"
"Wolverhampton City Council","http://opendatacommunities.org/id/metropolitan-district-council/wolverhampton","Entrust Social Care Limited","30667","1,137.40","Agency Staff","130000362","23/04/14","Children in Need & Child Protection","North East Locality Service","R1100"
"Wolverhampton City Council","http://opendatacommunities.org/id/metropolitan-district-council/wolverhampton","Entrust Social Care Limited","30749","1,170.53","Agency Staff","130000363","23/04/14","Children in Need & Child Protection","North East Locality Service","R1100"
"Wolverhampton City Council","http://opendatacommunities.org/id/metropolitan-district-council/wolverhampton","Flying Penguin Enterprises","168377","13.80","Equipment - Purchase","130000593","23/04/14","Fleet Services","Fleet Management","R4000"
"Wolverhampton City Council","http://opendatacommunities.org/id/metropolitan-district-council/wolverhampton","Gatenby Sanderson Limited","16518","7,271.75","Services - Consultants","130000521","23/04/14","School Planning & Resources","Administration","R4404"
"Wolverhampton City Council","http://opendatacommunities.org/id/metropolitan-district-council/wolverhampton","Harry Owen","DX:744350 9337","175.00","Services - Professional Fees","130000758","23/04/14","Children in Need & Child Protection","Head of Service - CINCP","R4400"
"Wolverhampton City Council","http://opendatacommunities.org/id/metropolitan-district-council/wolverhampton","Harry Owen","DX:744350 9325","175.00","Services - Professional Fees","130000757","23/04/14","Children in Need & Child Protection","Head of Service - CINCP","R4400"
"Wolverhampton City Council","http://opendatacommunities.org/id/metropolitan-district-council/wolverhampton","Harveys Of Oldham (Holdings) Limited","404609","110.20","Cleaning Supplies and Materials","130000562","23/04/14","Older People Provider Services","Woden Resource Centre","R2705"
"Wolverhampton City Council","http://opendatacommunities.org/id/metropolitan-district-council/wolverhampton","Hays Specialist Recruitment Limited","1004113142","247.50","Agency Staff","130000561","23/04/14","Transformation","Chief Executive Support","R1100"
"Wolverhampton City Council","http://opendatacommunities.org/id/metropolitan-district-council/wolverhampton","Hays Specialist Recruitment Limited","1004092302","812.17","Agency Staff","130000510","23/04/14","Childrens Centres & Early Years","Children�s Village Children Centre","R1100"
"Wolverhampton City Council","http://opendatacommunities.org/id/metropolitan-district-council/wolverhampton","Hays Specialist Recruitment Limited","1004115083","812.17","Agency Staff","130000511","23/04/14","Childrens Centres & Early Years","Children�s Village Children Centre","R1100"
"Wolverhampton City Council","http://opendatacommunities.org/id/metropolitan-district-council/wolverhampton","Hays Specialist Recruitment Limited","1004070893","812.17","Agency Staff","130000512","23/04/14","Childrens Centres & Early Years","Children�s Village Children Centre","R1100"
"Wolverhampton City Council","http://opendatacommunities.org/id/metropolitan-district-council/wolverhampton","Hays Specialist Recruitment Limited","1004092772","518.00","Agency Staff","130000506","23/04/14","Childrens Centres & Early Years","Children�s Village Children Centre","R1100"
"Wolverhampton City Council","http://opendatacommunities.org/id/metropolitan-district-council/wolverhampton","Hays Specialist Recruitment Limited","1004071200","518.00","Agency Staff","130000507","23/04/14","Childrens Centres & Early Years","Children�s Village Children Centre","R1100"
"Wolverhampton City Council","http://opendatacommunities.org/id/metropolitan-district-council/wolverhampton","Hays Specialist Recruitment Limited","1004078149","618.75","Agency Staff","130000509","23/04/14","Transformation","Chief Executive Support","R1100"
"Wolverhampton City Council","http://opendatacommunities.org/id/metropolitan-district-council/wolverhampton","Heath Park School (Academy)","FEB & MAR 14","818.09","School Meals","130000564","23/04/14","Schools","Discounted School Meals Scheme","R4103"
"Wolverhampton City Council","http://opendatacommunities.org/id/metropolitan-district-council/wolverhampton","Higgs & Sons Solicitors","74862312","2,520.00","Services - Professional Fees","130000568","23/04/14","HR Advice","HR Advice","R4400"
"Wolverhampton City Council","http://opendatacommunities.org/id/metropolitan-district-council/wolverhampton","Higgs & Sons Solicitors","74862314","2,880.00","Services - Professional Fees","130000567","23/04/14","HR Advice","HR Advice","R4400"
"Wolverhampton City Council","http://opendatacommunities.org/id/metropolitan-district-council/wolverhampton","Higgs & Sons Solicitors","74862316","2,250.00","Services - Professional Fees","130000569","23/04/14","HR Advice","HR Advice","R4400"
"Wolverhampton City Council","http://opendatacommunities.org/id/metropolitan-district-council/wolverhampton","Higgs & Sons Solicitors","74862319","2,520.00","Services - Professional Fees","130000570","23/04/14","HR Advice","HR Advice","R4400"
"Wolverhampton City Council","http://opendatacommunities.org/id/metropolitan-district-council/wolverhampton","Higgs & Sons Solicitors","74862321","180.00","Services - Professional Fees","130000571","23/04/14","HR Advice","HR Advice","R4400"
"Wolverhampton City Council","http://opendatacommunities.org/id/metropolitan-district-council/wolverhampton","Hurst Hill Primary School","P8091120140416","300.00","Grant Payments to Individuals","190002730","23/04/14","Looked After Children","LAC Education Team (LACE)","R6402"
"Wolverhampton City Council","http://opendatacommunities.org/id/metropolitan-district-council/wolverhampton","Initial Washroom Solutions","13892384","13.87","Cleaning Supplies and Materials","130000342","23/04/14","Culture Arts & Heritage","Makers Dozen","R2705"
"Wolverhampton City Council","http://opendatacommunities.org/id/metropolitan-district-council/wolverhampton","Initial Washroom Solutions","13846112","13.87","Cleaning Supplies and Materials","130000343","23/04/14","Culture Arts & Heritage","Makers Dozen","R2705"
"Wolverhampton City Council","http://opendatacommunities.org/id/metropolitan-district-council/wolverhampton","J Quintyne","ID625991","17.10","Provisions (Not for resale)","130000190","23/04/14","Older People Provider Services","Nelson Mandela House","R4101"
"Wolverhampton City Council","http://opendatacommunities.org/id/metropolitan-district-council/wolverhampton","James Lister & Sons Limited","0100/02338536","77.40","Protective Clothing","130000304","23/04/14","Highways Maintenance","Patching","R4200"
"Wolverhampton City Council","http://opendatacommunities.org/id/metropolitan-district-council/wolverhampton","James Lister & Sons Limited","0100/02338538","27.95","Protective Clothing","130000301","23/04/14","Housing","Housing Regeneration - Strategy & Development","R4200"
"Wolverhampton City Council","http://opendatacommunities.org/id/metropolitan-district-council/wolverhampton","Johal Dairies Limited","2223107","24.20","Provisions (Not for resale)","130000457","23/04/14","Childrens Centres & Early Years","Children�s Village Children Centre","R4101"
"Wolverhampton City Council","http://opendatacommunities.org/id/metropolitan-district-council/wolverhampton","Johal Dairies Limited","2223494","14.43","Catering","130000458","23/04/14","Children in Need & Child Protection","Blakenhall Family Centre","R4100"
"Wolverhampton City Council","http://opendatacommunities.org/id/metropolitan-district-council/wolverhampton","Johal Dairies Limited","2226730","27.94","Provisions (Not for resale)","130000459","23/04/14","Culture Arts & Heritage","Art Gallery Tea Room","R4101"
"Wolverhampton City Council","http://opendatacommunities.org/id/metropolitan-district-council/wolverhampton","Johal Dairies Limited","2111823","135.32","Provisions (Not for resale)","130000600","23/04/14","Older People Provider Services","Nelson Mandela House","R4101"
"Wolverhampton City Council","http://opendatacommunities.org/id/metropolitan-district-council/wolverhampton","Johal Dairies Limited","2124423","134.19","Provisions (Not for resale)","130000601","23/04/14","Older People Provider Services","Nelson Mandela House","R4101"
"Wolverhampton City Council","http://opendatacommunities.org/id/metropolitan-district-council/wolverhampton","Johal Dairies Limited","2127476","83.89","Provisions (Not for resale)","130000602","23/04/14","Older People Provider Services","Nelson Mandela House","R4101"
"Wolverhampton City Council","http://opendatacommunities.org/id/metropolitan-district-council/wolverhampton","Johal Dairies Limited","2136468","163.29","Provisions (Not for resale)","130000605","23/04/14","Older People Provider Services","Nelson Mandela House","R4101"
"Wolverhampton City Council","http://opendatacommunities.org/id/metropolitan-district-council/wolverhampton","Johal Dairies Limited","2140242","141.11","Provisions (Not for resale)","130000606","23/04/14","Older People Provider Services","Nelson Mandela House","R4101"
"Wolverhampton City Council","http://opendatacommunities.org/id/metropolitan-district-council/wolverhampton","Johal Dairies Limited","2145565","168.02","Provisions (Not for resale)","130000607","23/04/14","Older People Provider Services","Nelson Mandela House","R4101"
"Wolverhampton City Council","http://opendatacommunities.org/id/metropolitan-district-council/wolverhampton","Johal Dairies Limited","2148081","142.66","Provisions (Not for resale)","130000608","23/04/14","Older People Provider Services","Nelson Mandela House","R4101"
"Wolverhampton City Council","http://opendatacommunities.org/id/metropolitan-district-council/wolverhampton","Johal Dairies Limited","2107267","79.49","Provisions (Not for resale)","130000599","23/04/14","Older People Provider Services","Nelson Mandela House","R4101"
"Wolverhampton City Council","http://opendatacommunities.org/id/metropolitan-district-council/wolverhampton","Johal Dairies Limited","2226981","137.81","Provisions (Not for resale)","130000460","23/04/14","Older People Provider Services","Woden Resource Centre","R4101"
"Wolverhampton City Council","http://opendatacommunities.org/id/metropolitan-district-council/wolverhampton","Johal Dairies Limited","2227142","14.43","Catering","130000461","23/04/14","Children in Need & Child Protection","Blakenhall Family Centre","R4100"
"Wolverhampton City Council","http://opendatacommunities.org/id/metropolitan-district-council/wolverhampton","Johal Dairies Limited","2068843","174.32","Provisions (Not for resale)","130000464","23/04/14","Older People Provider Services","Nelson Mandela House","R4101"
"Wolverhampton City Council","http://opendatacommunities.org/id/metropolitan-district-council/wolverhampton","Johal Dairies Limited","2078887","173.78","Provisions (Not for resale)","130000468","23/04/14","Older People Provider Services","Nelson Mandela House","R4101"
"Wolverhampton City Council","http://opendatacommunities.org/id/metropolitan-district-council/wolverhampton","Johal Dairies Limited","2083342","48.08","Provisions (Not for resale)","130000469","23/04/14","Older People Provider Services","Nelson Mandela House","R4101"
"Wolverhampton City Council","http://opendatacommunities.org/id/metropolitan-district-council/wolverhampton","Johal Dairies Limited","2169425","162.69","Provisions (Not for resale)","130000470","23/04/14","Older People Provider Services","Nelson Mandela House","R4101"
"Wolverhampton City Council","http://opendatacommunities.org/id/metropolitan-district-council/wolverhampton","Johal Dairies Limited","2177287","181.06","Provisions (Not for resale)","130000472","23/04/14","Older People Provider Services","Nelson Mandela House","R4101"
"Wolverhampton City Council","http://opendatacommunities.org/id/metropolitan-district-council/wolverhampton","Johal Dairies Limited","2180994","178.61","Provisions (Not for resale)","130000473","23/04/14","Older People Provider Services","Nelson Mandela House","R4101"
"Wolverhampton City Council","http://opendatacommunities.org/id/metropolitan-district-council/wolverhampton","Johal Dairies Limited","2185798","155.44","Provisions (Not for resale)","130000474","23/04/14","Older People Provider Services","Nelson Mandela House","R4101"
"Wolverhampton City Council","http://opendatacommunities.org/id/metropolitan-district-council/wolverhampton","Johal Dairies Limited","2201827","135.57","Provisions (Not for resale)","130000477","23/04/14","Older People Provider Services","Merry Hill House","R4101"
"Wolverhampton City Council","http://opendatacommunities.org/id/metropolitan-district-council/wolverhampton","Johal Dairies Limited","2188184","178.00","Provisions (Not for resale)","130000475","23/04/14","Older People Provider Services","Nelson Mandela House","R4101"
"Wolverhampton City Council","http://opendatacommunities.org/id/metropolitan-district-council/wolverhampton","Johal Dairies Limited","2192215","146.23","Provisions (Not for resale)","130000476","23/04/14","Older People Provider Services","Nelson Mandela House","R4101"
"Wolverhampton City Council","http://opendatacommunities.org/id/metropolitan-district-council/wolverhampton","Johal Dairies Limited","2219215","26.52","Provisions (Not for resale)","130000453","23/04/14","Culture Arts & Heritage","Art Gallery Tea Room","R4101"
"Wolverhampton City Council","http://opendatacommunities.org/id/metropolitan-district-council/wolverhampton","Johal Dairies Limited","2219233","13.20","Provisions (Not for resale)","130000454","23/04/14","Childrens Centres & Early Years","Children�s Village Children Centre","R4101"
"Wolverhampton City Council","http://opendatacommunities.org/id/metropolitan-district-council/wolverhampton","Johal Dairies Limited","2219628","14.43","Catering","130000455","23/04/14","Children in Need & Child Protection","Blakenhall Family Centre","R4100"
"Wolverhampton City Council","http://opendatacommunities.org/id/metropolitan-district-council/wolverhampton","Johal Dairies Limited","2223089","20.68","Provisions (Not for resale)","130000456","23/04/14","Culture Arts & Heritage","Art Gallery Tea Room","R4101"
"Wolverhampton City Council","http://opendatacommunities.org/id/metropolitan-district-council/wolverhampton","Johal Dairies Limited","2209136","167.55","Provisions (Not for resale)","130000452","23/04/14","Older People Provider Services","Nelson Mandela House","R4101"
"Wolverhampton City Council","http://opendatacommunities.org/id/metropolitan-district-council/wolverhampton","Johal Dairies Limited","2129567","133.95","Provisions (Not for resale)","130000603","23/04/14","Older People Provider Services","Nelson Mandela House","R4101"
"Wolverhampton City Council","http://opendatacommunities.org/id/metropolitan-district-council/wolverhampton","Johal Dairies Limited","2133320","137.61","Provisions (Not for resale)","130000604","23/04/14","Older People Provider Services","Nelson Mandela House","R4101"
"Wolverhampton City Council","http://opendatacommunities.org/id/metropolitan-district-council/wolverhampton","Keysoft Solutions Limited","T/14/13289","2,635.00","Computing - Purchase of Software","130000749","23/04/14","Transportation","Transportation General","R4531"
"Wolverhampton City Council","http://opendatacommunities.org/id/metropolitan-district-council/wolverhampton","Kingsmead  School & Technology College","P8091120140416","300.00","Grant Payments to Individuals","190002730","23/04/14","Looked After Children","LAC Education Team (LACE)","R6402"
"Wolverhampton City Council","http://opendatacommunities.org/id/metropolitan-district-council/wolverhampton","Kingsmead  School & Technology College","P8091120140416","300.00","Grant Payments to Individuals","190002730","23/04/14","Looked After Children","LAC Education Team (LACE)","R6402"
"Wolverhampton City Council","http://opendatacommunities.org/id/metropolitan-district-council/wolverhampton","Konica Minolta Bus.Solutions(UK)Limited.","1111348013","64.36","Photocopier Charges - Consumables","130000410","23/04/14","Waste and Recycling Service","Waste Collection and Recycling Service - General","R4306"
"Wolverhampton City Council","http://opendatacommunities.org/id/metropolitan-district-council/wolverhampton","Konica Minolta Bus.Solutions(UK)Limited.","1110144969","52.32","Printing","130000418","23/04/14","Healthier Places Service","Healthy Schools Team","R4300"
"Wolverhampton City Council","http://opendatacommunities.org/id/metropolitan-district-council/wolverhampton","Konica Minolta Bus.Solutions(UK)Limited.","1106475592","204.65","Photocopier Charges - Consumables","130000748","23/04/14","ICTS","Printing","R4306"
"Wolverhampton City Council","http://opendatacommunities.org/id/metropolitan-district-council/wolverhampton","Konica Minolta Bus.Solutions(UK)Limited.","1110534310","132.69","Photocopier Charges - Consumables","130000416","23/04/14","Children in Need & Child Protection","Barnhurst Family Centre","R4306"
"Wolverhampton City Council","http://opendatacommunities.org/id/metropolitan-district-council/wolverhampton","Konica Minolta Bus.Solutions(UK)Limited.","1110450311","129.48","Photocopier Operating Lease","130000417","23/04/14","ICTS","Printing","R4304"
"Wolverhampton City Council","http://opendatacommunities.org/id/metropolitan-district-council/wolverhampton","Konica Minolta Bus.Solutions(UK)Limited.","1109775595","950.12","Photocopier Charges - Consumables","130000404","23/04/14","ICTS","Printing","R4306"
"Wolverhampton City Council","http://opendatacommunities.org/id/metropolitan-district-council/wolverhampton","Konica Minolta Bus.Solutions(UK)Limited.","1111546892","147.87","Photocopier Charges - Consumables","130000406","23/04/14","Culture Arts & Heritage","Archives","R4306"
"Wolverhampton City Council","http://opendatacommunities.org/id/metropolitan-district-council/wolverhampton","Konica Minolta Bus.Solutions(UK)Limited.","1111546893","524.34","Photocopier Charges - Consumables","130000407","23/04/14","Culture Arts & Heritage","Archives","R4306"
"Wolverhampton City Council","http://opendatacommunities.org/id/metropolitan-district-council/wolverhampton","Konica Minolta Bus.Solutions(UK)Limited.","1111445061","212.37","Photocopier Charges - Consumables","130000408","23/04/14","Transformation","Directorate","R4306"
"Wolverhampton City Council","http://opendatacommunities.org/id/metropolitan-district-council/wolverhampton","Konica Minolta Bus.Solutions(UK)Limited.","1111202856","521.12","Photocopier Charges - Consumables","130000411","23/04/14","Environmental Maintenance","Street Cleansing Overheads","R4306"
"Wolverhampton City Council","http://opendatacommunities.org/id/metropolitan-district-council/wolverhampton","Konica Minolta Bus.Solutions(UK)Limited.","1110882177","290.22","Photocopier Charges - Consumables","130000413","23/04/14","ICTS","Printing","R4306"
"Wolverhampton City Council","http://opendatacommunities.org/id/metropolitan-district-council/wolverhampton","Konica Minolta Bus.Solutions(UK)Limited.","1110633357","33.96","Photocopier Charges - Consumables","130000414","23/04/14","ICTS","Printing","R4306"
"Wolverhampton City Council","http://opendatacommunities.org/id/metropolitan-district-council/wolverhampton","Konica Minolta Bus.Solutions(UK)Limited.","1110559715","70.32","Photocopier Operating Lease","130000415","23/04/14","Older People Provider Services","Nelson Mandela House","R4304"
"Wolverhampton City Council","http://opendatacommunities.org/id/metropolitan-district-council/wolverhampton","Kpmg Llp Fees Account","5500789831","1,625.00","Materials","130000745","23/04/14","Service Director Children & Young People","Service Director Children & Young People","R4007"
"Wolverhampton City Council","http://opendatacommunities.org/id/metropolitan-district-council/wolverhampton","Lewis Psychology Cic","1945","86.00","Medical Fees","130000575","23/04/14","HR Advice","HR Advice","R1400"
"Wolverhampton City Council","http://opendatacommunities.org/id/metropolitan-district-council/wolverhampton","Lewis�S Medical Supp/Ta Pleskarn Limited","SI017443","42.60","Equipment - Purchase","130000576","23/04/14","Catering","Education Catering - General Overheads","R4000"
"Wolverhampton City Council","http://opendatacommunities.org/id/metropolitan-district-council/wolverhampton","Light House Limited","239578","63.20","Catering","130000448","23/04/14","Transformation","Corporate Strategy","R4100"
"Wolverhampton City Council","http://opendatacommunities.org/id/metropolitan-district-council/wolverhampton","Linden House (Tettenhall) Limited","3689","450.50","Equipment - Purchase","130000594","23/04/14","Social Inclusion & Play Service","MAST - Central Team","R4000"
"Wolverhampton City Council","http://opendatacommunities.org/id/metropolitan-district-council/wolverhampton","Liquid Personnel Limited","75919","1,299.80","Agency Staff","130000557","23/04/14","Children in Need & Child Protection","Duty & Assessment","R1100"
"Wolverhampton City Council","http://opendatacommunities.org/id/metropolitan-district-council/wolverhampton","Liquid Personnel Limited","82923","1,312.60","Agency Staff","130000356","23/04/14","Children in Need & Child Protection","North East Locality Service","R1100"
"Wolverhampton City Council","http://opendatacommunities.org/id/metropolitan-district-council/wolverhampton","Liquid Personnel Limited","95850","1,377.40","Agency Staff","130000317","23/04/14","Children in Need & Child Protection","North East Locality Service","R1100"
"Wolverhampton City Council","http://opendatacommunities.org/id/metropolitan-district-council/wolverhampton","Liquid Personnel Limited","95851","857.60","Agency Staff","130000318","23/04/14","Children in Need & Child Protection","Duty & Assessment","R1100"
"Wolverhampton City Council","http://opendatacommunities.org/id/metropolitan-district-council/wolverhampton","Liquid Personnel Limited","93596","1,310.20","Agency Staff","130000319","23/04/14","Children in Need & Child Protection","Duty & Assessment","R1100"
"Wolverhampton City Council","http://opendatacommunities.org/id/metropolitan-district-council/wolverhampton","Liquid Personnel Limited","95067","1,305.00","Agency Staff","130000316","23/04/14","Children in Need & Child Protection","Duty & Assessment","R1100"
"Wolverhampton City Council","http://opendatacommunities.org/id/metropolitan-district-council/wolverhampton","Liquid Personnel Limited","81621","1,295.00","Agency Staff","130000365","23/04/14","Children in Need & Child Protection","North East Locality Service","R1100"
"Wolverhampton City Council","http://opendatacommunities.org/id/metropolitan-district-council/wolverhampton","Liquid Personnel Limited","77604","1,302.20","Agency Staff","130000366","23/04/14","Children in Need & Child Protection","Duty & Assessment","R1100"
"Wolverhampton City Council","http://opendatacommunities.org/id/metropolitan-district-council/wolverhampton","Liquid Personnel Limited","76962","1,295.00","Agency Staff","130000367","23/04/14","Children in Need & Child Protection","Duty & Assessment","R1100"
"Wolverhampton City Council","http://opendatacommunities.org/id/metropolitan-district-council/wolverhampton","Liquid Personnel Limited","76449","1,295.00","Agency Staff","130000368","23/04/14","Children in Need & Child Protection","Duty & Assessment","R1100"
"Wolverhampton City Council","http://opendatacommunities.org/id/metropolitan-district-council/wolverhampton","Liquid Personnel Limited","83640","1,295.00","Agency Staff","130000352","23/04/14","Children in Need & Child Protection","North East Locality Service","R1100"
"Wolverhampton City Council","http://opendatacommunities.org/id/metropolitan-district-council/wolverhampton","Liquid Personnel Limited","82929","1,311.40","Agency Staff","130000353","23/04/14","Children in Need & Child Protection","Duty & Assessment","R1100"
"Wolverhampton City Council","http://opendatacommunities.org/id/metropolitan-district-council/wolverhampton","Liquid Personnel Limited","82925","1,063.20","Agency Staff","130000354","23/04/14","Children in Need & Child Protection","North East Locality Service","R1100"
"Wolverhampton City Council","http://opendatacommunities.org/id/metropolitan-district-council/wolverhampton","Liquid Personnel Limited","82314","1,308.20","Agency Staff","130000355","23/04/14","Children in Need & Child Protection","Duty & Assessment","R1100"
"Wolverhampton City Council","http://opendatacommunities.org/id/metropolitan-district-council/wolverhampton","Liquid Personnel Limited","90539","1,316.60","Agency Staff","130000326","23/04/14","Children in Need & Child Protection","Duty & Assessment","R1100"
"Wolverhampton City Council","http://opendatacommunities.org/id/metropolitan-district-council/wolverhampton","Liquid Personnel Limited","89833","1,295.00","Agency Staff","130000327","23/04/14","Children in Need & Child Protection","Duty & Assessment","R1100"
"Wolverhampton City Council","http://opendatacommunities.org/id/metropolitan-district-council/wolverhampton","Liquid Personnel Limited","88742","1,311.80","Agency Staff","130000328","23/04/14","Children in Need & Child Protection","Duty & Assessment","R1100"
"Wolverhampton City Council","http://opendatacommunities.org/id/metropolitan-district-council/wolverhampton","Liquid Personnel Limited","96589","1,310.20","Agency Staff","130000312","23/04/14","Children in Need & Child Protection","Duty & Assessment","R1100"
"Wolverhampton City Council","http://opendatacommunities.org/id/metropolitan-district-council/wolverhampton","Liquid Personnel Limited","96588","1,312.50","Agency Staff","130000313","23/04/14","Children in Need & Child Protection","North East Locality Service","R1100"
"Wolverhampton City Council","http://opendatacommunities.org/id/metropolitan-district-council/wolverhampton","Liquid Personnel Limited","92853","1,311.40","Agency Staff","130000323","23/04/14","Children in Need & Child Protection","Duty & Assessment","R1100"
"Wolverhampton City Council","http://opendatacommunities.org/id/metropolitan-district-council/wolverhampton","Liquid Personnel Limited","94235","1,306.20","Agency Staff","130000321","23/04/14","Children in Need & Child Protection","Duty & Assessment","R1100"
"Wolverhampton City Council","http://opendatacommunities.org/id/metropolitan-district-council/wolverhampton","Liquid Personnel Limited","96585","1,299.00","Agency Staff","130000315","23/04/14","Children in Need & Child Protection","North East Locality Service","R1100"
"Wolverhampton City Council","http://opendatacommunities.org/id/metropolitan-district-council/wolverhampton","Liquid Personnel Limited","92852","1,301.00","Agency Staff","130000324","23/04/14","Children in Need & Child Protection","Duty & Assessment","R1100"
"Wolverhampton City Council","http://opendatacommunities.org/id/metropolitan-district-council/wolverhampton","Liquid Personnel Limited","92851","1,310.20","Agency Staff","130000325","23/04/14","Children in Need & Child Protection","Duty & Assessment","R1100"
"Wolverhampton City Council","http://opendatacommunities.org/id/metropolitan-district-council/wolverhampton","Liquid Personnel Limited","76448","1,295.00","Agency Staff","130000556","23/04/14","Children in Need & Child Protection","North East Locality Service","R1100"
"Wolverhampton City Council","http://opendatacommunities.org/id/metropolitan-district-council/wolverhampton","Liquid Personnel Limited","81623","1,303.40","Agency Staff","130000361","23/04/14","Children in Need & Child Protection","Duty & Assessment","R1100"
